Workbook

Sheet Cover
D7: Draft Clean Fuel Supply Forecast
D8: BRG Work Product for the Washington State Department of Commerce
D9: 2022-09-23

Sheet Credits-Deficits -->

Sheet Cred-Def Summary
B2: Credits/Deficits/Bank Balance Summary Table
B4: Year | C4: Fueling Related Credit Generation | D4: Fueling Related Deficit Generation | E4: Non-Fueling Capacity and Infrastructure Credits | F4: Net Credit Generation | G4: Bank Beginning Balance | H4: Bank Ending Balance
B5: 2023 | C5: =SUMIF('Credits Generated'!$C6:$K6,">0") -> 1017225.379 | D5: =SUMIF('Credits Generated'!$C6:$K6,"<0") -> -754573.7961 | E5: =-D5*(1/20) -> 37728.68981 | F5: =SUM(C5:E5) -> 300380.2724 | G5: 0 | H5: =G5+F5 -> 300380.2724
B6: 2024 | C6: =SUMIF('Credits Generated'!$C7:$K7,">0") -> 1157563.621 | D6: =SUMIF('Credits Generated'!$C7:$K7,"<0") -> -961036.4637 | E6: =-D6*(1/20) -> 48051.82318 | F6: =SUM(C6:E6) -> 244578.9803 | G6: =H5 -> 300380.2724 | H6: =G6+F6 -> 544959.2527

Sheet Credits Generated
B2: Credits Generation
B4: Credits Generated by Fuel Type
B5: Year | C5: Gasoline | D5: Ethanol | E5: Electricity | F5: Diesel | G5: Biodiesel | H5: Renewable Diesel | I5: Natural Gas | J5: RNG | K5: Propane | L5: Total
B6: 2023 | C6: =(C11*'Fuel Energy Consumption'!C5)/(10^6) -> -604112.2653 | D6: =(D11*'Fuel Energy Consumption'!D5)/(10^6) -> 544750.4054 | E6: =(E11*'Fuel Energy Consumption'!G5)/(10^6) -> 61011.08815 | F6: =(F11*'Fuel Energy Consumption'!H5)/(10^6) -> -150461.5308 | G6: =(G11*'Fuel Energy Consumption'!I5)/(10^6) -> 223161.4175 | H6: =(H11*'Fuel Energy Consumption'!J5)/(10^6) -> 184168.214 | I6: =(I11*'Fuel Energy Consumption'!K5)/(10^6) -> 59.29391836 | J6: =(J11*'Fuel Energy Consumption'!L5)/(10^6) -> 359.5338123 | K6: =(K11*'Fuel Energy Consumption'!M5)/(10^6) -> 3715.426 | L6: =SUM(C6:K6) -> 262651.5826
B7: 2024 | C7: =(C12*'Fuel Energy Consumption'!C6)/(10^6) -> -766319.3361 | D7: =(D12*'Fuel Energy Consumption'!D6)/(10^6) -> 542390.318 | E7: =(E12*'Fuel Energy Consumption'!G6)/(10^6) -> 76059.95813 | F7: =(F12*'Fuel Energy Consumption'!H6)/(10^6) -> -194717.1276 | G7: =(G12*'Fuel Energy Consumption'!I6)/(10^6) -> 264585.2411 | H7: =(H12*'Fuel Energy Consumption'!J6)/(10^6) -> 270401.8906 | I7: =(I12*'Fuel Energy Consumption'!K6)/(10^6) -> 34.25609173 | J7: =(J12*'Fuel Energy Consumption'!L6)/(10^6) -> 393.19611 | K7: =(K12*'Fuel Energy Consumption'!M6)/(10^6) -> 3698.760778 | L7: =SUM(C7:K7) -> 196527.1571
B9: Fuel Substitute CI Differentials
B10: Year | C10: Gasoline | D10: Ethanol | E10: Electricity | F10: Diesel | G10: Biodiesel | H10: Renewable Diesel | I10: Natural Gas | J10: RNG | K10: Propane
B11: 2023 | C11: ='CI Targets and Inputs '!C7-'CI Targets and Inputs '!$C$13 -> -2.01 | D11: ='CI Targets and Inputs '!C7-'CI Targets and Inputs '!$C$14 -> 25.21 | E11: ='CI Targets and Inputs '!C7-'CI Targets and Inputs '!$C$21 -> 79.68058824 | F11: ='CI Targets and Inputs '!D7-'CI Targets and Inputs '!$C$15 -> -1.57 | G11: ='CI Targets and Inputs '!D7-'CI Targets and Inputs '!$C$16 -> 44.19 | H11: ='CI Targets and Inputs '!D7-'CI Targets and Inputs '!$C$17 -> 48.44 | I11: ='CI Targets and Inputs '!D7-'CI Targets and Inputs '!$C$18 -> 21.54 | J11: ='CI Targets and Inputs '!D7-'CI Targets and Inputs '!$C$19 -> 35 | K11: ='CI Targets and Inputs '!D7-'CI Targets and Inputs '!$C$20 -> 16.38
B12: 2024 | C12: ='CI Targets and Inputs '!C8-'CI Targets and Inputs '!$C$13 -> -2.51 | D12: ='CI Targets and Inputs '!C8-'CI Targets and Inputs '!$C$14 -> 24.71 | E12: ='CI Targets and Inputs '!C8-'CI Targets and Inputs '!$C$21 -> 79.18058824 | F12: ='CI Targets and Inputs '!D8-'CI Targets and Inputs '!$C$15 -> -2.07 | G12: ='CI Targets and Inputs '!D8-'CI Targets and Inputs '!$C$16 -> 43.69 | H12: ='CI Targets and Inputs '!D8-'CI Targets and Inputs '!$C$17 -> 47.94 | I12: ='CI Targets and Inputs '!D8-'CI Targets and Inputs '!$C$18 -> 21.04 | J12: ='CI Targets and Inputs '!D8-'CI Targets and Inputs '!$C$19 -> 34.5 | K12: ='CI Targets and Inputs '!D8-'CI Targets and Inputs '!$C$20 -> 15.88

Sheet Fuel Energy Consumption
B2: Energy Consumption per Fuel (MJ)
B4: Year | C4: Gasoline | D4: Ethanol | E4: Electricity (BEV) | F4: Electricity (PHEV) | G4: Total Electricity | H4: Diesel | I4: Biodiesel | J4: Renewable Diesel | K4: Natural Gas | L4: Renewable Natural Gas (Landfill) | M4: Propane
B5: 2023 | C5: =(('Summary Table '!H$5*(10^6))*E10) -> 300553365800 | D5: =(('Summary Table '!H6*(10^6))*$E$11) -> 2.160850478e+10 | E5: =('Summary Table '!H15*(10^6)*E18) -> 666819718.8 | F5: =('Summary Table '!H16*(10^6)*E18) -> 98876035.94 | G5: =SUM(Table812[[#This Row],[Electricity (BEV)]:[Electricity (PHEV)]]) -> 765695754.8 | H5: =('Summary Table '!H9*(10^6))*$E$12 -> 95835369968 | I5: =(('Summary Table '!H$10*(10^6))*E13) -> 5050043392 | J5: =(('Summary Table '!H12*(10^6))*'Fuel Energy Consumption'!$E$14) -> 3801986250 | K5: =('Summary Table '!H18*(10^6))*'Fuel Energy Consumption'!$E$12 -> 2752735.3 | L5: =('Summary Table '!H19*(10^6))*'Fuel Energy Consumption'!$E$12 -> 10272394.64 | M5: =('Summary Table '!H22*(10^6)*'Fuel Energy Consumption'!$E$17) -> 226826984.1
B6: 2024 | C6: =(('Summary Table '!I$5*(10^6))*$E$10) -> 305306508400 | D6: =(('Summary Table '!I6*(10^6))*$E$11) -> 21950235450 | E6: =('Summary Table '!I15*(10^6)*E18) -> 848430980.8 | F6: =('Summary Table '!I16*(10^6)*E18) -> 112157464.3 | G6: =SUM(Table812[[#This Row],[Electricity (BEV)]:[Electricity (PHEV)]]) -> 960588445.1 | H6: =('Summary Table '!I9*(10^6))*$E$12 -> 94066245224 | I6: =(('Summary Table '!I$10*(10^6)*E13)) -> 6055967981 | J6: =(('Summary Table '!I12*(10^6))*'Fuel Energy Consumption'!$E$14) -> 5640423250 | K6: =('Summary Table '!I18*(10^6))*'Fuel Energy Consumption'!$E$12 -> 1628141.242 | L6: =('Summary Table '!I19*(10^6))*'Fuel Energy Consumption'!$E$12 -> 11396988.69 | M6: =('Summary Table '!I22*(10^6)*'Fuel Energy Consumption'!$E$17) -> 232919444.4
C8: Energy Densities
C9: Fuel | D9: Units >> | E9: Energy Density
C10: Gasoline | D10: MJ/Gallon | E10: 122.48
C11: Ethanol | D11: MJ/Gallon | E11: 81.51
C12: Diesel | D12: MJ/Gallon | E12: 134.48
C13: Biodiesel (Soybean) | D13: MJ/Gallon | E13: 126.13
C14: Renewable Diesel (Soybean) | D14: MJ/Gallon | E14: 129.65
C15: Natural Gas | D15: MJ/DGE | E15: =E12 -> 134.48
C16: Renewable Natural Gas (Landfill) | D16: MJ/DGE | E16: =E12 -> 134.48
C17: Propane | D17: MJ/Gallon | E17: 89.63
C18: Electricity | D18: MJ/kWh | E18: 3.6
B20: Sources and Notes:
B21: Conversions: Washington Clean Fuels Progam Rule Part 9 Tables, https://app.leg.wa.gov/RCW/default.aspx?cite=70A.535.025

Sheet CI Targets and Inputs
B2: CI Targets, Factor Inputs, and Conversions
B4: CI Targets
B5: Year | C5: Gasoline | D5: Diesel
C6: [1] | D6: [2]
B7: 2023 | C7: 98.36 | D7: 99.52
B8: 2024 | C8: 97.86 | D8: 99.02
B10: CI Factor Inputs
B11: Fuel | C11: CI Input for Credit Calculations
C12: [3]
B13: Gasoline | C13: 100.37
B14: Ethanol | C14: 73.15
B15: Diesel | C15: 101.09
B16: Biodiesel | C16: 55.33
B17: Renewable Diesel | C17: 51.08
B18: Natural Gas | C18: 77.98
B19: Renewable Natural Gas | C19: 64.52
B20: Propane | C20: 83.14
B21: Electricity (Post-EER Adjustment) | C21: =63.51/D23 -> 18.67941176
B23: Washington EER Adjustment | C23: [4] | D23: 3.4
B25: Sources and Notes:
B26: [1]-[4]: Washington Clean Fuels Progam Rule Part 9 Tables, https://app.leg.wa.gov/RCW/default.aspx?cite=70A.535.025; Ethanol, Biodiesel, Renewable Diesel, and Renewable Natural Gas are sourced from the Washington-GREET model, from Department of Ecology, as created by Life Cycle Associates on July 15, 2022.

Sheet Availability + Consumption -->

Sheet Summary Table
C2: Summary Table of Fuel Consumption Forecasts
C4: Fuel Type | D4: Unit | E4: Citation Reference | F4: 2021 | G4: 2022 | H4: 2023 | I4: 2024 | J4: CAGR % vs 2021
C5: Fossil Gasoline | D5: MM Gallons | E5: [1] | F5: ='Gas & Diesel Forecast Data'!K$6-F$6 -> 2250.835 | G5: ='Gas & Diesel Forecast Data'!L$6-G$6 -> 2399.7475 | H5: ='Gas & Diesel Forecast Data'!M$6-H$6 -> 2453.8975 | I5: ='Gas & Diesel Forecast Data'!N$6-I$6 -> 2492.705 | J5: =((Table2[[#This Row],[2024]]/Table2[[#This Row],[2021]])^(1/(Table2[[#Headers],[2024]]-Table2[[#Headers],[2021]])))-1 -> 0.03460778435
C6: Ethanol | D6: MM Gallons | E6: [2] | F6: ='Gas & Diesel Forecast Data'!K$6*'Summary Table '!F$7 -> 243.165 | G6: ='Gas & Diesel Forecast Data'!L$6*'Summary Table '!G$7 -> 259.2525 | H6: ='Gas & Diesel Forecast Data'!M$6*'Summary Table '!H$7 -> 265.1025 | I6: ='Gas & Diesel Forecast Data'!N$6*'Summary Table '!I$7 -> 269.295 | J6: =((Table2[[#This Row],[2024]]/Table2[[#This Row],[2021]])^(1/(Table2[[#Headers],[2024]]-Table2[[#Headers],[2021]])))-1 -> 0.03460778435
C7: Ethanol Blend Rate | D7: % | E7: [3] | F7: 0.0975 | G7: 0.0975 | H7: 0.0975 | I7: 0.0975
C8: Total Gasoline | D8: MM Gallons | E8: [4] | F8: =SUM(F5:F6) -> 2494 | G8: =SUM(G5:G6) -> 2659 | H8: =SUM(H5:H6) -> 2719 | I8: 2762 | J8: =((Table2[[#This Row],[2024]]/Table2[[#This Row],[2021]])^(1/(Table2[[#Headers],[2024]]-Table2[[#Headers],[2021]])))-1 -> 0.03460778435
C9: Fossil Diesel | D9: MM Gallons | E9: [5] | F9: ='Gas & Diesel Forecast Data'!K$10-SUM(F$10,F$12) -> 707.85 | G9: ='Gas & Diesel Forecast Data'!L$10-SUM(G$10,G$12) -> 757.575 | H9: ='Gas & Diesel Forecast Data'!M$10-SUM(H$10,H$12) -> 712.6366 | I9: ='Gas & Diesel Forecast Data'!N$10-SUM(I$10,I$12) -> 699.4813 | J9: =((Table2[[#This Row],[2024]]/Table2[[#This Row],[2021]])^(1/(Table2[[#Headers],[2024]]-Table2[[#Headers],[2021]])))-1 -> -0.003956534369
C10: Biodiesel | D10: MM Gallons | E10: [6] | F10: ='Gas & Diesel Forecast Data'!K$10*'Summary Table '!F$11 -> 18.15 | G10: ='Gas & Diesel Forecast Data'!L$10*'Summary Table '!G$11 -> 19.425 | H10: ='Gas & Diesel Forecast Data'!M$10*'Summary Table '!H$11 -> 40.0384 | I10: ='Gas & Diesel Forecast Data'!N$10*'Summary Table '!I$11 -> 48.0137 | J10: =((Table2[[#This Row],[2024]]/Table2[[#This Row],[2021]])^(1/(Table2[[#Headers],[2024]]-Table2[[#Headers],[2021]])))-1 -> 0.3830233582
C11: Biodiesel Blend Rate | D11: % | E11: [7] | F11: 0.025 | G11: 0.025 | H11: 0.0512 | I11: 0.0607
C12: Renewable Diesel | D12: MM Gallons | E12: [8] | F12: ='Gas & Diesel Forecast Data'!K$10*'Summary Table '!F$13 -> 0 | G12: ='Gas & Diesel Forecast Data'!L$10*'Summary Table '!G$13 -> 0 | H12: ='Gas & Diesel Forecast Data'!M$10*'Summary Table '!H$13 -> 29.325 | I12: ='Gas & Diesel Forecast Data'!N$10*'Summary Table '!I$13 -> 43.505
C13: Renewable Diesel Blend Rate | D13: % | E13: [9] | F13: 0 | G13: 0 | H13: 0.0375 | I13: 0.055
C14: Total Diesel | D14: MM Gallons | E14: [10] | F14: =SUM(F9:F10,F12) -> 726 | G14: =SUM(G9:G10,G12) -> 777 | H14: 782 | I14: =SUM(I9:I10,I12) -> 791 | J14: =((Table2[[#This Row],[2024]]/Table2[[#This Row],[2021]])^(1/(Table2[[#Headers],[2024]]-Table2[[#Headers],[2021]])))-1 -> 0.02899505477
C15: Electricity (BEVs) | D15: GWh | E15: [11] | F15: =('Vehicle Stock Forecast'!K$39*'Washington EV Data'!$F$7)/1000000 -> 109.63538 | G15: =('Vehicle Stock Forecast'!L$39*'Washington EV Data'!$F$7)/1000000 -> 138.8825299 | H15: =('Vehicle Stock Forecast'!M$39*'Washington EV Data'!$F$7)/1000000 -> 185.2276997 | I15: =('Vehicle Stock Forecast'!N$39*'Washington EV Data'!$F$7)/1000000 -> 235.6752724 | J15: =((Table2[[#This Row],[2024]]/Table2[[#This Row],[2021]])^(1/(Table2[[#Headers],[2024]]-Table2[[#Headers],[2021]])))-1 -> 0.2905884195
C16: Electricity (PHEVs) | D16: GWh | E16: [12] | F16: =('Vehicle Stock Forecast'!K$40*'Washington EV Data'!$F$15)/1000000 -> 21.20279111 | G16: =('Vehicle Stock Forecast'!L$40*'Washington EV Data'!$F$15)/1000000 -> 23.65171349 | H16: =('Vehicle Stock Forecast'!M$40*'Washington EV Data'!$F$15)/1000000 -> 27.46556554 | I16: =('Vehicle Stock Forecast'!N$40*'Washington EV Data'!$F$15)/1000000 -> 31.15485119 | J16: =((Table2[[#This Row],[2024]]/Table2[[#This Row],[2021]])^(1/(Table2[[#Headers],[2024]]-Table2[[#Headers],[2021]])))-1 -> 0.1368701984
C17: Electricity | D17: GWh | E17: [13] | F17: =SUM(F15:F16) -> 130.8381711 | G17: =SUM(G15:G16) -> 162.5342433 | H17: 212.6932652 | I17: 266.8301236 | J17: =((Table2[[#This Row],[2024]]/Table2[[#This Row],[2021]])^(1/(Table2[[#Headers],[2024]]-Table2[[#Headers],[2021]])))-1 -> 0.2681388207
C18: Natural Gas | D18: MM Diesel Gallons Equivalent | E18: [14] | F18: =F21-F19 -> 0.09685551708 | G18: =G21-G19 -> 0.09685551708 | H18: =H21-H19 -> 0.02046947724 | I18: =I21-I19 -> 0.01210693963 | J18: =((Table2[[#This Row],[2024]]/Table2[[#This Row],[2021]])^(1/(Table2[[#Headers],[2024]]-Table2[[#Headers],[2021]])))-1 -> -0.5
C19: Renewable Natural Gas | D19: MM Diesel Gallons Equivalent | E19: [15] | F19: =F21*F20 -> 0 | G19: =G21*G20 -> 0 | H19: =H21*H20 -> 0.07638603983 | I19: =I21*I20 -> 0.08474857744
C20: Renewable Natural Gas Blend Rate | D20: % | E20: [16] | F20: 0 | G20: 0 | H20: 0.7886596669 | I20: 0.875
C21: Total Natural Gas | D21: MM Diesel Gallons Equivalent | E21: [17] | F21: =((('CNG Vehicle Registrations'!$F$7*'CNG Vehicle Registrations'!$F$8)*'Fuel Energy Consumption'!$E$10)/'Fuel Energy Consumption'!$E$15)/(10^6) -> 0.09685551708 | G21: =((('CNG Vehicle Registrations'!$F$7*'CNG Vehicle Registrations'!$F$8)*'Fuel Energy Consumption'!$E$10)/'Fuel Energy Consumption'!$E$15)/(10^6) -> 0.09685551708 | H21: =((('CNG Vehicle Registrations'!$F$7*'CNG Vehicle Registrations'!$F$8)*'Fuel Energy Consumption'!$E$10)/'Fuel Energy Consumption'!$E$15)/(10^6) -> 0.09685551708 | I21: =((('CNG Vehicle Registrations'!$F$7*'CNG Vehicle Registrations'!$F$8)*'Fuel Energy Consumption'!$E$10)/'Fuel Energy Consumption'!$E$15)/(10^6) -> 0.09685551708 | J21: =((Table2[[#This Row],[2024]]/Table2[[#This Row],[2021]])^(1/(Table2[[#Headers],[2024]]-Table2[[#Headers],[2021]])))-1 -> 0
C22: Propane | D22: MM Gallons | E22: [18] | F22: ='Propane EIA Data'!F$5*'Propane EIA Data'!$F$9 -> 2.013059863 | G22: ='Propane EIA Data'!G$5*'Propane EIA Data'!$F$9 -> 2.344212568 | H22: ='Propane EIA Data'!H$5*'Propane EIA Data'!$F$9 -> 2.530703828 | I22: ='Propane EIA Data'!I$5*'Propane EIA Data'!$F$9 -> 2.598677278 | J22: =((Table2[[#This Row],[2024]]/Table2[[#This Row],[2021]])^(1/(Table2[[#Headers],[2024]]-Table2[[#Headers],[2021]])))-1 -> 0.0888428904
C25: Sources and Notes:
C26: [1]: 'Gas & Diesel Forecast Data' less ethanol blend volume
C27: [2]: 'Gas & Diesel Forecast Data' multiplied by Ethanol Blend Rate.
C28: [3]: BRG analysis based on historical experience in Oregon and California and other market trends
C29: [5]: 'Gas & Diesel Forecast Data' less Biodiesel and Renewable Diesel blend volumes.
C30: [6]: 'Gas & Diesel Forecast Data' multiplied by Biodiesel Blend Rate.
C31: [7]: BRG analysis based on historical experience in Oregon and California and other market trends.
C32: [8]: 'Gas & Diesel Forecast Data' multiplied by Renewable Diesel Blend Rate.
C33: [9]: BRG analysis based on historical experience in Oregon and California and other market trends.
C34: [11]: 'Vehicle Stock Forecast' for BEVs times the average annual electricity consumption for BEVs in Washington.
C35: [12]: 'Vehicle Stock Forecast' for PHEVs times the average annual electricity consumption for PHEVs in Washington. 10% of PHEV vehicle miles traveled is assumed to be gasoline powered.
C36: [14]: Natural gas consumption less volume of Renewable Natural Gas consumption.
C37: [15]: Total Natural Gas consumption multiplied by the renewable natural gas blend rate.
C38: [16]: Renewable natural gas produced in Washington is typically exported to California or Oregon to take advantage of multiple incentive structures. With the implementation of a CFS the blendrate of RNG is assumed to the same rates projected in Oregon.
C39: [17]: 'CNG Vehicles Registrations' times average annual CNG consumption per vehicle. Converted into MM Diesel Gallons Equivalent.
C40: [18]: Using Washington's historical consumption BRG has allocated the projected propane consumption using the U.S. EIA AEO Pacific Consumption Forecast. Due to an identified data limitation BRG relied upon the average allocation to Washington from 2014 through 2019.

Sheet Gasoline + Alts Forecast
B2: Gasoline and Gasoline Alternatives Consumption Forecast
B4: Fuel Type | C4: Unit | D4: Citation Reference | E4: 2021 | F4: 2022 | G4: 2023 | H4: 2024
B5: Fossil Gasoline | C5: MM Gallons | D5: [1] | E5: ='Gas & Diesel Forecast Data'!K$6-E6 -> 2250.835 | F5: ='Gas & Diesel Forecast Data'!L$6-F6 -> 2399.7475 | G5: ='Gas & Diesel Forecast Data'!M$6-G6 -> 2453.8975 | H5: ='Gas & Diesel Forecast Data'!N$6-H6 -> 2492.705
B6: Ethanol | C6: MM Gallons | D6: [2] | E6: ='Gas & Diesel Forecast Data'!K$6*E$7 -> 243.165 | F6: ='Gas & Diesel Forecast Data'!L$6*'Summary Table '!G$7 -> 259.2525 | G6: ='Gas & Diesel Forecast Data'!M$6*'Summary Table '!H$7 -> 265.1025 | H6: ='Gas & Diesel Forecast Data'!N$6*'Summary Table '!I$7 -> 269.295
B7: Ethanol Blend Rate | C7: % | D7: [3] | E7: 0.0975 | F7: 0.0975 | G7: 0.0975 | H7: 0.0975
B8: Total Gasoline | C8: MM Gallons | D8: [4] | E8: =SUM(E5:E6) -> 2494 | F8: =SUM(F5:F6) -> 2659 | G8: =SUM(G5:G6) -> 2719 | H8: =SUM(H5:H6) -> 2762
B10: Sources & Notes:
B11: [1]: 'Gas & Diesel Forecast Data' less Ethanol blend volume.
B12: [2]: 'Gas & Diesel Forecast Data' times Ethanol blend percentage.
B13: [3]: BRG analysis based on historical experience in Oregon and California and other market trends.

Sheet Petroleum Availability
B2: Petroleum Production and Available Capacity (2022)
B4: Product | D4: Gallons (EIA) | E4: % of barrel
B5: Finished motor gasoline | C5: [1] | D5: 19.4 | E5: =D5/Conversions!D5 -> 0.4619047619
B6: Distillate fuel oil | C6: [1] | D6: 13.44 | E6: =D6/Conversions!D5 -> 0.32
C8: Crude Oil Distillation Operable Capacity | D8: Gasoline | E8: Diesel
B9: State | C9: (MM Barrels per Calendar Day) | D9: (MM gal/ year) | E9: (MM gal/year)
C10: [2]
B11: East Coast (PADD 1)
B12: Delaware | C12: 0.171 | D12: =(C12*365)*Conversions!$D$5*$E$5 -> 1210.851 | E12: =(C12*365)*Conversions!$D$5*$E$6 -> 838.8576
B13: Florida | C13: 0 | D13: =(C13*365)*Conversions!$D$5*$E$5 -> 0 | E13: =(C13*365)*Conversions!$D$5*$E$6 -> 0
B14: Georgia | C14: 0 | D14: =(C14*365)*Conversions!$D$5*$E$5 -> 0 | E14: =(C14*365)*Conversions!$D$5*$E$6 -> 0
B15: Maryland | C15: 0 | D15: =(C15*365)*Conversions!$D$5*$E$5 -> 0 | E15: =(C15*365)*Conversions!$D$5*$E$6 -> 0
B16: New Jersey | C16: 0.3585 | D16: =(C16*365)*Conversions!$D$5*$E$5 -> 2538.5385 | E16: =(C16*365)*Conversions!$D$5*$E$6 -> 1758.6576
B17: New York | C17: 0 | D17: =(C17*365)*Conversions!$D$5*$E$5 -> 0 | E17: =(C17*365)*Conversions!$D$5*$E$6 -> 0
B18: North Carolina | C18: 0 | D18: =(C18*365)*Conversions!$D$5*$E$5 -> 0 | E18: =(C18*365)*Conversions!$D$5*$E$6 -> 0
B19: Pennsylvania | C19: 0.266 | D19: =(C19*365)*Conversions!$D$5*$E$5 -> 1883.546 | E19: =(C19*365)*Conversions!$D$5*$E$6 -> 1304.8896
B20: Virginia | C20: 0 | D20: =(C20*365)*Conversions!$D$5*$E$5 -> 0 | E20: =(C20*365)*Conversions!$D$5*$E$6 -> 0
B21: West Virginia | C21: 0.0223 | D21: =(C21*365)*Conversions!$D$5*$E$5 -> 157.9063 | E21: =(C21*365)*Conversions!$D$5*$E$6 -> 109.39488
B22: Midwest (PADD 2)
B23: Illinois | C23: 1.040065 | D23: =(C23*365)*Conversions!$D$5*$E$5 -> 7364.700265 | E23: =(C23*365)*Conversions!$D$5*$E$6 -> 5102.142864
B24: Indiana | C24: 0.4673 | D24: =(C24*365)*Conversions!$D$5*$E$5 -> 3308.9513 | E24: =(C24*365)*Conversions!$D$5*$E$6 -> 2292.38688
B25: Kansas | C25: 0.4042 | D25: =(C25*365)*Conversions!$D$5*$E$5 -> 2862.1402 | E25: =(C25*365)*Conversions!$D$5*$E$6 -> 1982.84352
B26: Kentucky | C26: 0.291 | D26: =(C26*365)*Conversions!$D$5*$E$5 -> 2060.571 | E26: =(C26*365)*Conversions!$D$5*$E$6 -> 1427.5296
B27: Michigan | C27: 0.14 | D27: =(C27*365)*Conversions!$D$5*$E$5 -> 991.34 | E27: =(C27*365)*Conversions!$D$5*$E$6 -> 686.784
B28: Minnesota | C28: 0.439 | D28: =(C28*365)*Conversions!$D$5*$E$5 -> 3108.559 | E28: =(C28*365)*Conversions!$D$5*$E$6 -> 2153.5584
B29: Missouri | C29: 0 | D29: =(C29*365)*Conversions!$D$5*$E$5 -> 0 | E29: =(C29*365)*Conversions!$D$5*$E$6 -> 0
B30: Nebraska | C30: 0 | D30: =(C30*365)*Conversions!$D$5*$E$5 -> 0 | E30: =(C30*365)*Conversions!$D$5*$E$6 -> 0
B31: North Dakota | C31: 0.071 | D31: =(C31*365)*Conversions!$D$5*$E$5 -> 502.751 | E31: =(C31*365)*Conversions!$D$5*$E$6 -> 348.2976
B32: Ohio | C32: 0.6026 | D32: =(C32*365)*Conversions!$D$5*$E$5 -> 4267.0106 | E32: =(C32*365)*Conversions!$D$5*$E$6 -> 2956.11456
B33: Oklahoma | C33: 0.5238 | D33: =(C33*365)*Conversions!$D$5*$E$5 -> 3709.0278 | E33: =(C33*365)*Conversions!$D$5*$E$6 -> 2569.55328
B34: Tennessee | C34: 0.18 | D34: =(C34*365)*Conversions!$D$5*$E$5 -> 1274.58 | E34: =(C34*365)*Conversions!$D$5*$E$6 -> 883.008
B35: Wisconsin | C35: 0.038 | D35: =(C35*365)*Conversions!$D$5*$E$5 -> 269.078 | E35: =(C35*365)*Conversions!$D$5*$E$6 -> 186.4128
B36: Gulf Coast (PADD 3)
B37: Alabama | C37: 0.1411 | D37: =(C37*365)*Conversions!$D$5*$E$5 -> 999.1291 | E37: =(C37*365)*Conversions!$D$5*$E$6 -> 692.18016
B38: Arkansas | C38: 0.0905 | D38: =(C38*365)*Conversions!$D$5*$E$5 -> 640.8305 | E38: =(C38*365)*Conversions!$D$5*$E$6 -> 443.9568
B39: Louisiana | C39: 2.922541 | D39: =(C39*365)*Conversions!$D$5*$E$5 -> 20694.51282 | E39: =(C39*365)*Conversions!$D$5*$E$6 -> 14336.81713
B40: Mississippi | C40: 0.39394 | D40: =(C40*365)*Conversions!$D$5*$E$5 -> 2789.48914 | E40: =(C40*365)*Conversions!$D$5*$E$6 -> 1932.512064
B41: New Mexico | C41: 0.11 | D41: =(C41*365)*Conversions!$D$5*$E$5 -> 778.91 | E41: =(C41*365)*Conversions!$D$5*$E$6 -> 539.616
B42: Texas | C42: 5.948529 | D42: =(C42*365)*Conversions!$D$5*$E$5 -> 42121.53385 | E42: =(C42*365)*Conversions!$D$5*$E$6 -> 29181.10386
B43: Rocky Mountain (PADD 4)
B44: Colorado | C44: 0.103 | D44: =(C44*365)*Conversions!$D$5*$E$5 -> 729.343 | E44: =(C44*365)*Conversions!$D$5*$E$6 -> 505.2768
B45: Montana | C45: 0.2276 | D45: =(C45*365)*Conversions!$D$5*$E$5 -> 1611.6356 | E45: =(C45*365)*Conversions!$D$5*$E$6 -> 1116.51456
B46: Utah | C46: 0.206714 | D46: =(C46*365)*Conversions!$D$5*$E$5 -> 1463.741834 | E46: =(C46*365)*Conversions!$D$5*$E$6 -> 1014.056198
B47: Wyoming | C47: 0.12585 | D47: =(C47*365)*Conversions!$D$5*$E$5 -> 891.14385 | E47: =(C47*365)*Conversions!$D$5*$E$6 -> 617.36976
B48: West Coast (PADD 5)
B49: Alaska | C49: 0.1642 | D49: =(C49*365)*Conversions!$D$5*$E$5 -> 1162.7002 | E49: =(C49*365)*Conversions!$D$5*$E$6 -> 805.49952
B50: California | C50: 1.749871 | D50: =(C50*365)*Conversions!$D$5*$E$5 -> 12390.83655 | E50: =(C50*365)*Conversions!$D$5*$E$6 -> 8584.167178
B51: Hawaii | C51: 0.0935 | D51: =(C51*365)*Conversions!$D$5*$E$5 -> 662.0735 | E51: =(C51*365)*Conversions!$D$5*$E$6 -> 458.6736
B52: Nevada | C52: 0.002 | D52: =(C52*365)*Conversions!$D$5*$E$5 -> 14.162 | E52: =(C52*365)*Conversions!$D$5*$E$6 -> 9.8112
B53: Washington | C53: 0.6497 | D53: =(C53*365)*Conversions!$D$5*$E$5 -> 4600.5257 | E53: =(C53*365)*Conversions!$D$5*$E$6 -> 3187.16832
B54: PADD 1 | C54: =SUM(C12:C21) -> 0.8178 | D54: =SUM(D12:D21) -> 5790.8418 | E54: =SUM(E12:E21) -> 4011.79968
B55: PADD 2 | C55: =SUM(C23:C35) -> 4.196965 | D55: =SUM(D23:D35) -> 29718.70917 | E55: =SUM(E23:E35) -> 20588.6315
B56: PADD 3 | C56: =SUM(C37:C42) -> 9.60661 | D56: =SUM(D37:D42) -> 68024.40541 | E56: =SUM(E37:E42) -> 47126.18602
B57: PADD 4 | C57: =SUM(C44:C47) -> 0.663164 | D57: =SUM(D44:D47) -> 4695.864284 | E57: =SUM(E44:E47) -> 3253.217318
B58: PADD 5 | C58: =SUM(C49:C53) -> 2.659271 | D58: =SUM(D49:D53) -> 18830.29795 | E58: =SUM(E49:E53) -> 13045.31982
B59: U.S. | C59: =SUM(C54:C58) -> 17.94381 | D59: =SUM(D54:D58) -> 127060.1186 | E59: =SUM(E54:E58) -> 88025.15434
B61: Sources:
B62: [1] Petroleum products produced from one 42-gallon barrel of oil input at U.S. refineries, 2020, https://www.eia.gov/energyexplained/oil-and-petroleum-products/refining-crude-oil-inputs-and-outputs.php
B63: [2] U.S. Energy Information Administration, Number and Capacity of Petroleum Refineries, accessed as of Sept. 2, 2022. https://www.eia.gov/dnav/pet/pet_pnp_cap1_dcu_nus_a.htm

Sheet Ethanol Availability
B2: Ethanol Production (2022)
B4: State | C4: Number of Producers | D4: Production Capacity | E4: Production Capacity
D5: (MM gal/year) | E5: (Thousand Barrels/day)
C6: [1] | D6: [2] | E6: [2]
B7: East Coast (PADD 1)
B8: New York | C8: 2 | D8: 62 | E8: 4.044357469
B9: North Carolina | C9: 1 | D9: 57 | E9: 3.718199609
B10: Pennsylvania | C10: 1 | D10: 128 | E10: 8.349641226
B11: Midwest (PADD 2)
B12: Illinois | C12: 13 | D12: 1743 | E12: 113.6986301
B13: Indiana | C13: 14 | D13: 1315 | E13: 85.77951729
B14: Iowa | C14: 41 | D14: 4694 | E14: 306.1969993
B15: Kansas | C15: 12 | D15: 601 | E15: 38.81278539
B16: Kentucky | C16: 2 | D16: 53 | E16: 3.13111546
B17: Michigan | C17: 5 | D17: 387 | E17: 25.2446184
B18: Minnesota | C18: 19 | D18: 1424 | E18: 92.88975864
B19: Missouri | C19: 6 | D19: 331 | E19: 21.59165036
B20: Nebraska | C20: 24 | D20: 2244 | E20: 146.3796477
B21: North Dakota | C21: 5 | D21: 547 | E21: 35.68166993
B22: Ohio | C22: 7 | D22: 722 | E22: 47.09719504
B23: South Dakota | C23: 16 | D23: 1444 | E23: 94.19439008
B24: Tennessee | C24: 3 | D24: 236 | E24: 15.32941944
B25: Wisconsin | C25: 9 | D25: 587 | E25: 38.29093281
B26: Gulf Coast (PADD 3)
B27: Texas | C27: 3 | D27: 380 | E27: 24.78799739
B28: Rocky Mountains (PADD 4)
B29: Colorado | C29: 3 | D29: 140 | E29: 9.132420091
B30: Idaho | C30: 1 | D30: 60 | E30: 3.913894325
B31: West Coast (PADD 5)
B32: California | C32: 4 | D32: 188 | E32: 12.06784083
B33: Oregon | C33: 1 | D33: 40 | E33: 2.609262883
B34: PADD 1 | C34: =SUM(C8:C10) -> 4 | D34: =SUM(D8:D10) -> 247 | E34: =SUM(E8:E10) -> 16.1121983
B35: PADD 2 | C35: =SUM(C12:C25) -> 176 | D35: =SUM(D12:D25) -> 16328 | E35: =SUM(E12:E25) -> 1064.31833
B36: PADD 3 | C36: =C27 -> 3 | D36: =D27 -> 380 | E36: =E27 -> 24.78799739
B37: PADD 4 | C37: =SUM(C29:C30) -> 4 | D37: =SUM(D29:D30) -> 200 | E37: =SUM(E29:E30) -> 13.04631442
B38: PADD 5 | C38: =SUM(C32:C33) -> 5 | D38: =SUM(D32:D33) -> 228 | E38: =SUM(E32:E33) -> 14.67710372
B39: US Total | C39: =SUM(C34:C38) -> 192 | D39: =SUM(D34:D38) -> 17383 | E39: =SUM(E34:E38) -> 1132.941944
B41: Sources and Notes:
B42: [1]-[2]: U.S. Energy Information Administration, U.S. Fuel Ethanol Plant Production Capacity, accessed as of Sept. 2, 2022. https://www.eia.gov/petroleum/ethanolcapacity/

Sheet Diesel + Alts Cons Forecast
B2: Diesel and Diesel Alternatives Volume Consumption Forecast
B4: Fuel Type | C4: Unit | D4: Citation Reference | E4: 2021 | F4: 2022 | G4: 2023 | H4: 2024
B5: Fossil Diesel | C5: MM Gallons | D5: [1] | E5: ='Gas & Diesel Forecast Data'!K$10-SUM(E$6,E$8) -> 707.85 | F5: ='Gas & Diesel Forecast Data'!L$10-SUM(F$6,F$8) -> 757.575 | G5: ='Gas & Diesel Forecast Data'!M$10-SUM(G$6,G$8) -> 712.6366 | H5: ='Gas & Diesel Forecast Data'!N$10-SUM(H$6,H$8) -> 699.4813
B6: Biodiesel | C6: MM Gallons | D6: [2] | E6: ='Gas & Diesel Forecast Data'!K$10*E$7 -> 18.15 | F6: ='Gas & Diesel Forecast Data'!L$10*F$7 -> 19.425 | G6: ='Gas & Diesel Forecast Data'!M$10*G$7 -> 40.0384 | H6: ='Gas & Diesel Forecast Data'!N$10*H$7 -> 48.0137
B7: Biodiesel Blend Rate | C7: % | D7: [3] | E7: 0.025 | F7: 0.025 | G7: 0.0512 | H7: 0.0607
B8: Renewable Diesel | C8: MM Gallons | D8: [4] | E8: ='Gas & Diesel Forecast Data'!K$10*E$9 -> 0 | F8: ='Gas & Diesel Forecast Data'!L$10*F$9 -> 0 | G8: ='Gas & Diesel Forecast Data'!M$10*G$9 -> 29.325 | H8: ='Gas & Diesel Forecast Data'!N$10*H$9 -> 43.505
B9: Renewable Diesel Blend Rate | C9: % | D9: [5] | E9: 0 | F9: 0 | G9: 0.0375 | H9: 0.055
B10: Total Diesel | C10: MM Gallons | D10: [6] | E10: =SUM(E5:E6,E8) -> 726 | F10: =SUM(F5:F6,F8) -> 777 | G10: 782 | H10: 791
B12: Sources and Notes:
B13: [1]: 'Gas & Diesel Forecast Data' less Biodiesel and Renewable Diesel blend volumes.
B14: [2]: 'Gas & Diesel Forecast Data' times Biodiesel blend percentage.
B15: [3]: BRG analysis based on historical experience in Oregon and California and other market trends.
B16: [4]: 'Gas & Diesel Forecast Data' times Renewable Diesel blend percentage.
B17: [5]: BRG analysis based on historical experience in Oregon and California and other market trends.

Sheet Biodiesel Availability
B2: Biodiesel Production (2022)
B4: State | C4: Number of Producers | D4: Production Capacity | E4: Production Capacity
D5: (MM gal/year) | E5: (Thousand Barrels/day)
C6: [1] | D6: [2] | E6: [2]
B7: East Coast PADD 1
B8: Connecticut | C8: 1 | D8: 35 | E8: 2.283105023
B9: Georgia | C9: 2 | D9: 22 | E9: 1.304631442
B10: Massachusetts | C10: 1 | D10: 1 | E10: 0
B11: Maine | C11: 1 | D11: 1 | E11: 0
B12: North Carolina | C12: 1 | D12: 2 | E12: 0
B13: New Hampshire | C13: 1 | D13: 8 | E13: 0.5218525766
B14: Pennsylvania | C14: 2 | D14: 64 | E14: 4.174820613
B15: Rhode Island | C15: 1 | D15: 8 | E15: 0.5
B16: South Carolina | C16: 1 | D16: 5 | E16: 0
B17: Virginia | C17: 3 | D17: 11 | E17: 0
B18: Midwest (PADD 2)
B19: Iowa | C19: 11 | D19: 470 | E19: 30.65883888
B20: Illinois | C20: 4 | D20: 192 | E20: 12.26353555
B21: Indiana | C21: 3 | D21: 107 | E21: 6.457925636
B22: Kansas | C22: 1 | D22: 90 | E22: 5.870841487
B23: Kentucky | C23: 2 | D23: 56 | E23: 3.522504892
B24: Michigan | C24: 2 | D24: 15 | E24: 0.9784735812
B25: Minnesota | C25: 3 | D25: 85 | E25: 5.348988911
B26: Missouri | C26: 6 | D26: 238 | E26: 15.19895629
B27: North Dakota | C27: 1 | D27: 85 | E27: 5.544683627
B28: Oklahoma | C28: 1 | D28: 38 | E28: 2.478799739
B29: Tennessee | C29: 1 | D29: 36 | E29: 2.348336595
B30: Wisconsin | C30: 2 | D30: 33 | E30: 1.826484018
B31: Gulf Coast (PADD 3)
B32: Alabama | C32: 1 | D32: 20 | E32: 1.304631442
B33: Arkansas | C33: 3 | D33: 115 | E33: 7.501630789
B34: Mississippi | C34: 2 | D34: 29 | E34: 1.89171559
B35: Texas | C35: 6 | D35: 291 | E35: 18.98238748
B36: West Coast (PADD 5)
B37: Arizona | C37: 1 | D37: 2 | E37: 0
B38: California | C38: 4 | D38: 72 | E38: 4.69667319
B39: Oregon | C39: 1 | D39: 12 | E39: 0.782778865
B40: Washington | C40: 1 | D40: 107 | E40: 6.979778213
B41: PADD 1 | C41: =SUM(C8:C17) -> 14 | D41: =SUM(D8:D17) -> 157 | E41: =SUM(E8:E17) -> 8.784409654
B42: PADD 2 | C42: =SUM(C19:C30) -> 37 | D42: =SUM(D19:D30) -> 1445 | E42: =SUM(E19:E30) -> 92.49836921
B43: PADD 3 | C43: =SUM(C32:C35) -> 12 | D43: =SUM(D32:D35) -> 455 | E43: =SUM(E32:E35) -> 29.6803653
B44: PADD 4
B45: PADD 5 | C45: =SUM(C37:C40) -> 7 | D45: =SUM(D37:D40) -> 193 | E45: =SUM(E37:E40) -> 12.45923027
B46: US Total | C46: =SUM(C41:C45) -> 70 | D46: =SUM(D41:D45) -> 2250 | E46: =SUM(E41:E45) -> 143.4223744
B48: Sources and Notes:
B49: [1]: U.S. Energy Information Administration, U.S. Biodiesel Plant Production Capacity, accessed as of Sept. 2, 2022. https://www.eia.gov/biofuels/biodiesel/capacity/
B50: [2]: U.S. Energy Information Administration, U.S. Biodiesel Plant Production Capacity, accessed as of Sept. 2, 2022. https://www.eia.gov/biofuels/biodiesel/capacity/

Sheet Renewable Diesel Availability
B2: Renewable Diesel Availability (2023)
B4: State | C4: Number of Producers | D4: Production Capacity | E4: Production Capacity
D5: (MM gal/year) | E5: (Thousand Barrels/day)
D6: [1] | E6: [1]
B7: Midwest (PADD 2)
B8: Kansas | C8: 1 | D8: 3 | E8: 0
B9: North Dakota | C9: 1 | D9: 192 | E9: 12.52446184
B10: Gulf Coast (PADD 3)
B11: Louisiana | C11: 2 | D11: 1082 | E11: 70.58056099
B12: Rocky Mountains (PADD 4)
B13: Wyoming | C13: 2 | D13: 209 | E13: 13.63339856
B14: West Coast (PADD 5)
B15: California | C15: 4 | D15: 199 | E15: 12.58969341
B16: Washington* | C16: 1 | D16: 109 | E16: 4.007123288
B17: PADD 1
B18: PADD 2 | C18: =SUM(C8:C9) -> 2 | D18: =SUM(D8:D9) -> 195 | E18: =SUM(E8:E9) -> 12.52446184
B19: PADD 3 | C19: =C11 -> 2 | D19: =D11 -> 1082 | E19: =E11 -> 70.58056099
B20: PADD 4 | C20: =C13 -> 2 | D20: =D13 -> 209 | E20: =E13 -> 13.63339856
B21: PADD 5 | C21: =SUM(C15:C16) -> 5 | D21: =SUM(D15:D16) -> 308 | E21: =SUM(E15:E16) -> 16.5968167
B22: US Total | C22: =SUM(C17:C21) -> 11 | D22: =SUM(D17:D21) -> 1794 | E22: =SUM(E17:E21) -> 113.3352381
B24: Sources and Notes:
B25: [1]: U.S. Energy Information Administration, U.S. Renewable Diesel Fuel and Other Biofuels Plant Production Capacity, accessed as of Sept. 2, 2022. https://www.eia.gov/biofuels/renewable/capacity/
B26: * Cherry Point Refinery is expected to be operational by 2023. BP, BP investing almost $270 million to improve efficiency, reduce emissions and grow renewable diesel production at Cherry Point Refinery, https://www.bp.com/en/global/corporate/news-and-insights/press-releases/bp-investing-almost-270m-to-improve-efficiency-reduce-emissions-and-grow-renewable-diesel-production-at-cherry-point-refinery.html

Sheet Electricity Cons Forecast
B2: Electricity Consumption Forecast
B4: Fuel Type | C4: Unit | D4: Citation Reference | E4: 2021 | F4: 2022 | G4: 2023 | H4: 2024
B5: Electricity (BEVs) | C5: GWh | D5: [1] | E5: =('Vehicle Stock Forecast'!K$39*'Washington EV Data'!$F$7)/1000000 -> 109.63538 | F5: =('Vehicle Stock Forecast'!L$39*'Washington EV Data'!$F$7)/1000000 -> 138.8825299 | G5: =('Vehicle Stock Forecast'!M$39*'Washington EV Data'!$F$7)/1000000 -> 185.2276997 | H5: =('Vehicle Stock Forecast'!N$39*'Washington EV Data'!$F$7)/1000000 -> 235.6752724
B6: Electricity (PHEVs) | C6: GWh | D6: [2] | E6: =('Vehicle Stock Forecast'!K$40*'Washington EV Data'!$F$15)/1000000 -> 21.20279111 | F6: =('Vehicle Stock Forecast'!L$40*'Washington EV Data'!$F$15)/1000000 -> 23.65171349 | G6: =('Vehicle Stock Forecast'!M$40*'Washington EV Data'!$F$15)/1000000 -> 27.46556554 | H6: =('Vehicle Stock Forecast'!N$40*'Washington EV Data'!$F$15)/1000000 -> 31.15485119
B7: Electricity | C7: GWh | D7: [3] | E7: =SUM(E5:E6) -> 130.8381711 | F7: =SUM(F5:F6) -> 162.5342433 | G7: 212.6932652 | H7: 266.8301236
B9: Sources and Notes:
B10: [1]: 'Vehicle Stock Forecast' for BEVs times the average annual electricity consumption for BEVs in Washington.
B11: [2]: 'Vehicle Stock Forecast' for PHEVs times the average annual electricity consumption for PHEVs in Washington. 10% of PHEV vehicle miles traveled is assumed to be gasoline powered.

Sheet Electricity Availability
B2: Electricity Generation Availability (2020)
B4: Interconnection | C4: State | D4: Generation Available
D5: (GWh/year)
D6: [1]
B7: WECC | C7: AZ | D7: 109305.057
B8: WECC | C8: CA | D8: 193074.93
B9: WECC | C9: CO | D9: 54115.011
B10: WECC | C10: ID | D10: 17686.135
B11: WECC | C11: NV | D11: 40424.745
B12: WECC | C12: OR | D12: 63624.782
B13: WECC | C13: UT | D13: 37087.309
B14: WECC | C14: WA | D14: 116114.468
B15: Rest of WECC* | D15: 32407.459
B16: Total WECC | D16: =SUM(D7:D15) -> 663839.896
B18: Sources and Notes:
B19: [1]: U.S. Energy Information Administration, Generation Tables, accessed as of Sept. 2, 2022. https://www.eia.gov/electricity/annual/html/epa_03_07.html
B20: * Rest of WECC: Balance of WECC generation not accounted for by state in the above. https://www.eia.gov/electricity/gridmonitor/dashboard/

Sheet Natural Gas + RNG Forecast
B2: Natural Gas and Renewable Natural Gas Consumption Forecast
B4: Fuel Type | C4: Unit | D4: Citation Reference | E4: 2021 | F4: 2022 | G4: 2023 | H4: 2024
B5: Natural Gas | C5: MM Diesel Gallons Equivalent | D5: [1] | E5: =E8-E6 -> 0.09685551708 | F5: =F8-F6 -> 0.09685551708 | G5: =G8-G6 -> 0.02046947724 | H5: =H8-H6 -> 0.01210693963
B6: Renewable Natural Gas | C6: MM Diesel Gallons Equivalent | D6: [2] | E6: =E8*E7 -> 0 | F6: =F8*F7 -> 0 | G6: =G8*G7 -> 0.07638603983 | H6: =H8*H7 -> 0.08474857744
B7: Renewable Natural Gas Blend Rate | C7: % | D7: [3] | E7: 0 | F7: 0 | G7: 0.7886596669 | H7: 0.875
B8: Total Natural Gas | C8: MM Diesel Gallons Equivalent | D8: [4] | E8: =((('CNG Vehicle Registrations'!$F$7*'CNG Vehicle Registrations'!$F$8)*'Fuel Energy Consumption'!$E$10)/'Fuel Energy Consumption'!$E$15)/(10^6) -> 0.09685551708 | F8: =((('CNG Vehicle Registrations'!$F$7*'CNG Vehicle Registrations'!$F$8)*'Fuel Energy Consumption'!$E$10)/'Fuel Energy Consumption'!$E$15)/(10^6) -> 0.09685551708 | G8: =((('CNG Vehicle Registrations'!$F$7*'CNG Vehicle Registrations'!$F$8)*'Fuel Energy Consumption'!$E$10)/'Fuel Energy Consumption'!$E$15)/(10^6) -> 0.09685551708 | H8: =((('CNG Vehicle Registrations'!$F$7*'CNG Vehicle Registrations'!$F$8)*'Fuel Energy Consumption'!$E$10)/'Fuel Energy Consumption'!$E$15)/(10^6) -> 0.09685551708
B10: Sources and Notes:
B11: [1]: 'CNG Vehicle Registrations' times average annual CNG consumption per vehicle. Converted into MM Diesel Gallons Equivalent.
B12: [2]: Renewable natural gas produced in Washington is typically exported to California or Oregon to take advantage of multiple incentive structures. With the implementation of a CFS the blendrate of RNG is assumed to increase year over year.
B13: [3]: BRG analysis based on historical experience in Oregon and California and other market trends.

Sheet Natural Gas Availability
B2: Natural Gas Production (2022)
B4: State | C4: Production Capacity | D4: Production Capacity
C5: (Million cu ft) | D5: (Million DGE)
C6: [1]
B7: East Coast (PADD 1)
B8: Florida | C8: 698 | D8: =(C8/Conversions!$D$6) -> 5.010768126
B9: Maryland | C9: 10 | D9: =(C9/Conversions!$D$6) -> 0.07178750897
B10: New York | C10: 9692 | D10: =(C10/Conversions!$D$6) -> 69.5764537
B11: Pennsylvania | C11: 7148295 | D11: =(C11/Conversions!$D$6) -> 51315.82915
B12: Virginia | C12: 102824 | D12: =(C12/Conversions!$D$6) -> 738.1478823
B13: West Virginia | C13: 2592319 | D13: =(C13/Conversions!$D$6) -> 18609.61235
B14: Midwest (PADD 2)
B15: Illinois | C15: 1843 | D15: =(C15/Conversions!$D$6) -> 13.2304379
B16: Indiana | C16: 4197 | D16: =(C16/Conversions!$D$6) -> 30.12921752
B17: Kansas | C17: 163356 | D17: =(C17/Conversions!$D$6) -> 1172.692032
B18: Kentucky | C18: 71018 | D18: =(C18/Conversions!$D$6) -> 509.8205312
B19: Michigan | C19: 64911 | D19: =(C19/Conversions!$D$6) -> 465.9798995
B20: Missouri | C20: 1 | D20: =(C20/Conversions!$D$6) -> 0.007178750897
B21: Nebraska | C21: 351 | D21: =(C21/Conversions!$D$6) -> 2.519741565
B22: North Dakota | C22: 882443 | D22: =(C22/Conversions!$D$6) -> 6334.838478
B23: Ohio | C23: 2378902 | D23: =(C23/Conversions!$D$6) -> 17077.54487
B24: Oklahoma | C24: 2786366 | D24: =(C24/Conversions!$D$6) -> 20002.62742
B25: South Dakota | C25: 407 | D25: =(C25/Conversions!$D$6) -> 2.921751615
B26: Tennessee | C26: 2770 | D26: =(C26/Conversions!$D$6) -> 19.88513999
B27: Gulf Coast (PADD 3)
B28: Alabama | C28: 117028 | D28: =(C28/Conversions!$D$6) -> 840.11486
B29: Arkansas | C29: 480982 | D29: =(C29/Conversions!$D$6) -> 3452.849964
B30: Louisiana | C30: 3206163 | D30: =(C30/Conversions!$D$6) -> 23016.24551
B31: Mississippi | C31: 28134 | D31: =(C31/Conversions!$D$6) -> 201.9669777
B32: New Mexico | C32: 1948168 | D32: =(C32/Conversions!$D$6) -> 13985.41278
B33: Texas | C33: 9336110 | D33: =(C33/Conversions!$D$6) -> 67021.60804
B34: Rocky Mountains (PADD 4)
B35: Colorado | C35: 1990462 | D35: =(C35/Conversions!$D$6) -> 14289.03087
B36: Montana | C36: 37963 | D36: =(C36/Conversions!$D$6) -> 272.5269203
B37: Utah | C37: 241989 | D37: =(C37/Conversions!$D$6) -> 1737.178751
B38: Wyoming | C38: 1306368 | D38: =(C38/Conversions!$D$6) -> 9378.090452
B39: West Coast (PADD 5)
B40: Arizona | C40: 66 | D40: =(C40/Conversions!$D$6) -> 0.4737975592
B41: California | C41: 170579 | D41: =(C41/Conversions!$D$6) -> 1224.544149
B42: Nevada | C42: 12 | D42: =(C42/Conversions!$D$6) -> 0.08614501077
B43: Oregon | C43: 320 | D43: =(C43/Conversions!$D$6) -> 2.297200287
B44: PADD 1 | C44: =SUM(C8:C13) -> 9853838 | D44: =SUM(D8:D13) -> 70738.24838
B45: PADD 2 | C45: =SUM(C15:C26) -> 6356565 | D45: =SUM(D15:D26) -> 45632.1967
B46: PADD 3 | C46: =SUM(C28:C33) -> 15116585 | D46: =SUM(D28:D33) -> 108518.1981
B47: PADD 4 | C47: =SUM(C35:C38) -> 3576782 | D47: =SUM(D35:D38) -> 25676.82699
B48: PADD 5 | C48: =SUM(C40:C43) -> 170977 | D48: =SUM(D40:D43) -> 1227.401292
B49: US Total | C49: =SUM(C44:C48) -> 35074747 | D49: =SUM(D44:D48) -> 251792.8715
B50: Alberta, CA2 | C50: =104.009*Conversions!$D$4*1000 -> 3675262.024 | D50: =(C50/Conversions!$D$6) -> 26383.79055
B51: British Columbia, CA3 | C51: =52.82*Conversions!$D$4*1000 -> 1866447.52 | D51: =(C51/Conversions!$D$6) -> 13398.76181
B53: Sources and Notes:
B54: [1]: U.S. Energy Information Administration, Natural Gas Plant Field Production, accessed as of Sept. 2, 2022. https://www.eia.gov/state/rankings/?sid=MI#series/47
B55: [2]: 104.009 bcm is the sum of 2021 Natural Gas Production numbers from Alberta, Economic Dashboard, https://economicdashboard.alberta.ca/NaturalGasProduction
B56: [3]: 52.82 bcm is the sum of 2021 Natural Gas Production numbers from British Columbia, Natural Gas and Oil Statistics, https://www2.gov.bc.ca/gov/content/industry/natural-gas-oil/statistics

Sheet Renew Natural Gas Availability
B2: Renewable Natural Gas Production Availability (2022)
B4: State | C4: Total Number of Producers | D4: Production Volume (2021)
D5: Food Waste | E5: Landfills | F5: Livestock | G5: Water Treatment Facility | H5: Total | I5: Food Waste | J5: Landfills | K5: Livestock | L5: Water Treatment Facility | M5: Total
D6: MMBtu/year | E6: Mmbtu/year | F6: MMBtu/year | G6: MMBtu/year | H6: MMBtu/year | I6: MM DGE | J6: MM DGE | K6: MM DGE | L6: MM DGE | M6: MM DGE
D7: [1]
B8: East Coast (PADD 1)
B9: Georgia | C9: 1 | D9: - | E9: 430006.5 | F9: - | G9: - | H9: =IF(SUM(D9:G9),SUM(D9:G9),"-") -> 430006.5 | I9: =IFERROR((D9/Conversions!$D$3)/Conversions!$D$6,"-") -> - | J9: =IFERROR((E9/Conversions!$D$3)/Conversions!$D$6,"-") -> 2.971039026 | K9: =IFERROR((F9/Conversions!$D$3)/Conversions!$D$6,"-") -> - | L9: =IFERROR((G9/Conversions!$D$3)/Conversions!$D$6,"-") -> - | M9: =IF(SUM(I9:L9),SUM(I9:L9),"-") -> 2.971039026
B10: New York | C10: 12 | D10: - | E10: 1254635 | F10: 448146.4888 | G10: 591300 | H10: =IF(SUM(D10:G10),SUM(D10:G10),"-") -> 2294081.489 | I10: =IFERROR((D10/Conversions!$D$3)/Conversions!$D$6,"-") -> - | J10: =IFERROR((E10/Conversions!$D$3)/Conversions!$D$6,"-") -> 8.668635353 | K10: =IFERROR((F10/Conversions!$D$3)/Conversions!$D$6,"-") -> 3.096373444 | L10: =IFERROR((G10/Conversions!$D$3)/Conversions!$D$6,"-") -> 4.085462373 | M10: =IF(SUM(I10:L10),SUM(I10:L10),"-") -> 15.85047117
B11: North Carolina | C11: 2 | D11: - | E11: - | F11: 220000 | G11: - | H11: =IF(SUM(D11:G11),SUM(D11:G11),"-") -> 220000 | I11: =IFERROR((D11/Conversions!$D$3)/Conversions!$D$6,"-") -> - | J11: =IFERROR((E11/Conversions!$D$3)/Conversions!$D$6,"-") -> - | K11: =IFERROR((F11/Conversions!$D$3)/Conversions!$D$6,"-") -> 1.520043501 | L11: =IFERROR((G11/Conversions!$D$3)/Conversions!$D$6,"-") -> - | M11: =IF(SUM(I11:L11),SUM(I11:L11),"-") -> 1.520043501
B12: Pennsylvania | C12: 9 | D12: - | E12: 4047101.75 | F12: - | G12: - | H12: =IF(SUM(D12:G12),SUM(D12:G12),"-") -> 4047101.75 | I12: =IFERROR((D12/Conversions!$D$3)/Conversions!$D$6,"-") -> - | J12: =IFERROR((E12/Conversions!$D$3)/Conversions!$D$6,"-") -> 27.96259415 | K12: =IFERROR((F12/Conversions!$D$3)/Conversions!$D$6,"-") -> - | L12: =IFERROR((G12/Conversions!$D$3)/Conversions!$D$6,"-") -> - | M12: =IF(SUM(I12:L12),SUM(I12:L12),"-") -> 27.96259415
B13: West Virginia | C13: 1 | D13: - | E13: 145000 | F13: - | G13: - | H13: =IF(SUM(D13:G13),SUM(D13:G13),"-") -> 145000 | I13: =IFERROR((D13/Conversions!$D$3)/Conversions!$D$6,"-") -> - | J13: =IFERROR((E13/Conversions!$D$3)/Conversions!$D$6,"-") -> 1.001846853 | K13: =IFERROR((F13/Conversions!$D$3)/Conversions!$D$6,"-") -> - | L13: =IFERROR((G13/Conversions!$D$3)/Conversions!$D$6,"-") -> - | M13: =IF(SUM(I13:L13),SUM(I13:L13),"-") -> 1.001846853
B14: Midwest (PADD 2)
B15: Illinois | C15: 1 | D15: - | E15: 576000 | F15: - | G15: - | H15: =IF(SUM(D15:G15),SUM(D15:G15),"-") -> 576000 | I15: =IFERROR((D15/Conversions!$D$3)/Conversions!$D$6,"-") -> - | J15: =IFERROR((E15/Conversions!$D$3)/Conversions!$D$6,"-") -> 3.979750257 | K15: =IFERROR((F15/Conversions!$D$3)/Conversions!$D$6,"-") -> - | L15: =IFERROR((G15/Conversions!$D$3)/Conversions!$D$6,"-") -> - | M15: =IF(SUM(I15:L15),SUM(I15:L15),"-") -> 3.979750257
B16: Indiana | C16: 1 | D16: - | E16: 897552 | F16: - | G16: - | H16: 897552 | I16: =IFERROR((D16/Conversions!$D$3)/Conversions!$D$6,"-") -> - | J16: =IFERROR((E16/Conversions!$D$3)/Conversions!$D$6,"-") -> 6.201445838 | K16: =IFERROR((F16/Conversions!$D$3)/Conversions!$D$6,"-") -> - | L16: =IFERROR((G16/Conversions!$D$3)/Conversions!$D$6,"-") -> - | M16: 6.201445838
B17: Kansas | C17: 2 | D17: - | E17: 1540000 | F17: - | G17: - | H17: 1540000 | I17: =IFERROR((D17/Conversions!$D$3)/Conversions!$D$6,"-") -> - | J17: =IFERROR((E17/Conversions!$D$3)/Conversions!$D$6,"-") -> 10.64030451 | K17: =IFERROR((F17/Conversions!$D$3)/Conversions!$D$6,"-") -> - | L17: =IFERROR((G17/Conversions!$D$3)/Conversions!$D$6,"-") -> - | M17: 10.64030451
B18: Kentucky | C18: 2 | D18: - | E18: 1382572.5 | F18: - | G18: - | H18: 1382572.5 | I18: =IFERROR((D18/Conversions!$D$3)/Conversions!$D$6,"-") -> - | J18: =IFERROR((E18/Conversions!$D$3)/Conversions!$D$6,"-") -> 9.552592469 | K18: =IFERROR((F18/Conversions!$D$3)/Conversions!$D$6,"-") -> - | L18: =IFERROR((G18/Conversions!$D$3)/Conversions!$D$6,"-") -> - | M18: 9.552592469
B19: Michigan | C19: 6 | D19: - | E19: 2442478.685 | F19: - | G19: 141912 | H19: 2584390.685 | I19: =IFERROR((D19/Conversions!$D$3)/Conversions!$D$6,"-") -> - | J19: =IFERROR((E19/Conversions!$D$3)/Conversions!$D$6,"-") -> 16.87579023 | K19: =IFERROR((F19/Conversions!$D$3)/Conversions!$D$6,"-") -> - | L19: =IFERROR((G19/Conversions!$D$3)/Conversions!$D$6,"-") -> 0.9805109695 | M19: 17.8563012
B20: Minnesota | C20: 1 | D20: - | E20: - | F20: 430000 | G20: - | H20: 430000 | I20: =IFERROR((D20/Conversions!$D$3)/Conversions!$D$6,"-") -> - | J20: =IFERROR((E20/Conversions!$D$3)/Conversions!$D$6,"-") -> - | K20: =IFERROR((F20/Conversions!$D$3)/Conversions!$D$6,"-") -> 2.970994115 | L20: =IFERROR((G20/Conversions!$D$3)/Conversions!$D$6,"-") -> - | M20: 2.970994115
B21: Missouri | C21: 4 | D21: - | E21: - | F21: 195000 | G21: - | H21: 195000 | I21: =IFERROR((D21/Conversions!$D$3)/Conversions!$D$6,"-") -> - | J21: =IFERROR((E21/Conversions!$D$3)/Conversions!$D$6,"-") -> - | K21: =IFERROR((F21/Conversions!$D$3)/Conversions!$D$6,"-") -> 1.347311285 | L21: =IFERROR((G21/Conversions!$D$3)/Conversions!$D$6,"-") -> - | M21: 1.347311285
B22: Nebraska | C22: 6 | D22: 190000 | E22: 542577 | F22: - | G22: 174990.258 | H22: 907567.258 | I22: =IFERROR((D22/Conversions!$D$3)/Conversions!$D$6,"-") -> 1.312764842 | J22: =IFERROR((E22/Conversions!$D$3)/Conversions!$D$6,"-") -> 3.748821103 | K22: =IFERROR((F22/Conversions!$D$3)/Conversions!$D$6,"-") -> - | L22: =IFERROR((G22/Conversions!$D$3)/Conversions!$D$6,"-") -> 1.209058202 | M22: 6.270644146
B23: Ohio | C23: 9 | D23: 213762.916 | E23: 6215511.1 | F23: - | G23: - | H23: 6429274.016 | I23: =IFERROR((D23/Conversions!$D$3)/Conversions!$D$6,"-") -> 1.476949687 | J23: =IFERROR((E23/Conversions!$D$3)/Conversions!$D$6,"-") -> 42.94476024 | K23: =IFERROR((F23/Conversions!$D$3)/Conversions!$D$6,"-") -> - | L23: =IFERROR((G23/Conversions!$D$3)/Conversions!$D$6,"-") -> - | M23: 44.42170992
B24: Oklahoma | C24: 5 | D24: 219000 | E24: 2108766.33 | F24: - | G24: - | H24: 2327766.33 | I24: =IFERROR((D24/Conversions!$D$3)/Conversions!$D$6,"-") -> 1.513134212 | J24: =IFERROR((E24/Conversions!$D$3)/Conversions!$D$6,"-") -> 14.57007525 | K24: =IFERROR((F24/Conversions!$D$3)/Conversions!$D$6,"-") -> - | L24: =IFERROR((G24/Conversions!$D$3)/Conversions!$D$6,"-") -> - | M24: 16.08320946
B25: Tennessee | C25: 4 | D25: - | E25: 2021314.15 | F25: - | G25: - | H25: 2021314.15 | I25: =IFERROR((D25/Conversions!$D$3)/Conversions!$D$6,"-") -> - | J25: =IFERROR((E25/Conversions!$D$3)/Conversions!$D$6,"-") -> 13.9658429 | K25: =IFERROR((F25/Conversions!$D$3)/Conversions!$D$6,"-") -> - | L25: =IFERROR((G25/Conversions!$D$3)/Conversions!$D$6,"-") -> - | M25: 13.9658429
B26: Wisconsin | C26: 16 | D26: 1332249 | E26: 632707.425 | F26: 1920391.4 | G26: 264.441258 | H26: 3885612.266 | I26: =IFERROR((D26/Conversions!$D$3)/Conversions!$D$6,"-") -> 9.204892882 | J26: =IFERROR((E26/Conversions!$D$3)/Conversions!$D$6,"-") -> 4.371558224 | K26: =IFERROR((F26/Conversions!$D$3)/Conversions!$D$6,"-") -> 13.26853849 | L26: =IFERROR((G26/Conversions!$D$3)/Conversions!$D$6,"-") -> 0.00182710098 | M26: 26.84681669
B27: Gulf Coast (PADD 3)
B28: Arkansas | C28: 1 | D28: - | E28: 534600 | F28: - | G28: - | H28: =IF(SUM(D28:G28),SUM(D28:G28),"-") -> 534600 | I28: =IFERROR((D28/Conversions!$D$3)/Conversions!$D$6,"-") -> - | J28: =IFERROR((E28/Conversions!$D$3)/Conversions!$D$6,"-") -> 3.693705707 | K28: =IFERROR((F28/Conversions!$D$3)/Conversions!$D$6,"-") -> - | L28: =IFERROR((G28/Conversions!$D$3)/Conversions!$D$6,"-") -> - | M28: =IF(SUM(I28:L28),SUM(I28:L28),"-") -> 3.693705707
B29: Louisiana | C29: 5 | D29: - | E29: 3514659 | F29: - | G29: - | H29: =IF(SUM(D29:G29),SUM(D29:G29),"-") -> 3514659 | I29: =IFERROR((D29/Conversions!$D$3)/Conversions!$D$6,"-") -> - | J29: =IFERROR((E29/Conversions!$D$3)/Conversions!$D$6,"-") -> 24.2837935 | K29: =IFERROR((F29/Conversions!$D$3)/Conversions!$D$6,"-") -> - | L29: =IFERROR((G29/Conversions!$D$3)/Conversions!$D$6,"-") -> - | M29: =IF(SUM(I29:L29),SUM(I29:L29),"-") -> 24.2837935
B30: Mississippi | C30: 1 | D30: - | E30: 497355 | F30: - | G30: - | H30: =IF(SUM(D30:G30),SUM(D30:G30),"-") -> 497355 | I30: =IFERROR((D30/Conversions!$D$3)/Conversions!$D$6,"-") -> - | J30: =IFERROR((E30/Conversions!$D$3)/Conversions!$D$6,"-") -> 3.436369252 | K30: =IFERROR((F30/Conversions!$D$3)/Conversions!$D$6,"-") -> - | L30: =IFERROR((G30/Conversions!$D$3)/Conversions!$D$6,"-") -> - | M30: =IF(SUM(I30:L30),SUM(I30:L30),"-") -> 3.436369252
B31: New Mexico | C31: 1 | D31: - | E31: - | F31: 18067.5 | G31: - | H31: =IF(SUM(D31:G31),SUM(D31:G31),"-") -> 18067.5 | I31: =IFERROR((D31/Conversions!$D$3)/Conversions!$D$6,"-") -> - | J31: =IFERROR((E31/Conversions!$D$3)/Conversions!$D$6,"-") -> - | K31: =IFERROR((F31/Conversions!$D$3)/Conversions!$D$6,"-") -> 0.1248335725 | L31: =IFERROR((G31/Conversions!$D$3)/Conversions!$D$6,"-") -> - | M31: =IF(SUM(I31:L31),SUM(I31:L31),"-") -> 0.1248335725
B32: Texas | C32: 21 | D32: - | E32: 19687812.18 | F32: 478145 | G32: 260829 | H32: =IF(SUM(D32:G32),SUM(D32:G32),"-") -> 20426786.18 | I32: =IFERROR((D32/Conversions!$D$3)/Conversions!$D$6,"-") -> - | J32: =IFERROR((E32/Conversions!$D$3)/Conversions!$D$6,"-") -> 136.028777 | K32: =IFERROR((F32/Conversions!$D$3)/Conversions!$D$6,"-") -> 3.303641817 | L32: =IFERROR((G32/Conversions!$D$3)/Conversions!$D$6,"-") -> 1.802142847 | M32: =IF(SUM(I32:L32),SUM(I32:L32),"-") -> 141.1345617
B33: Rocky Mountains (PADD 4)
B34: Idaho | C34: 3 | D34: - | E34: - | F34: 576545 | G34: - | H34: =IF(SUM(D34:G34),SUM(D34:G34),"-") -> 576545 | I34: =IFERROR((D34/Conversions!$D$3)/Conversions!$D$6,"-") -> - | J34: =IFERROR((E34/Conversions!$D$3)/Conversions!$D$6,"-") -> - | K34: =IFERROR((F34/Conversions!$D$3)/Conversions!$D$6,"-") -> 3.983515819 | L34: =IFERROR((G34/Conversions!$D$3)/Conversions!$D$6,"-") -> - | M34: =IF(SUM(I34:L34),SUM(I34:L34),"-") -> 3.983515819
B35: Montana | C35: 1 | D35: - | E35: 161704.125 | F35: - | G35: - | H35: =IF(SUM(D35:G35),SUM(D35:G35),"-") -> 161704.125 | I35: =IFERROR((D35/Conversions!$D$3)/Conversions!$D$6,"-") -> - | J35: =IFERROR((E35/Conversions!$D$3)/Conversions!$D$6,"-") -> 1.117260474 | K35: =IFERROR((F35/Conversions!$D$3)/Conversions!$D$6,"-") -> - | L35: =IFERROR((G35/Conversions!$D$3)/Conversions!$D$6,"-") -> - | M35: =IF(SUM(I35:L35),SUM(I35:L35),"-") -> 1.117260474
B36: Utah | C36: 2 | D36: 985500 | E36: - | F36: 236000 | G36: - | H36: =IF(SUM(D36:G36),SUM(D36:G36),"-") -> 1221500 | I36: =IFERROR((D36/Conversions!$D$3)/Conversions!$D$6,"-") -> 6.809103955 | J36: =IFERROR((E36/Conversions!$D$3)/Conversions!$D$6,"-") -> - | K36: =IFERROR((F36/Conversions!$D$3)/Conversions!$D$6,"-") -> 1.630592119 | L36: =IFERROR((G36/Conversions!$D$3)/Conversions!$D$6,"-") -> - | M36: =IF(SUM(I36:L36),SUM(I36:L36),"-") -> 8.439696074
B37: West Coast (PADD 5)
B38: Arizona | C38: 4 | D38: - | E38: - | F38: 1362110.4 | G38: 752424 | H38: =IF(SUM(D38:G38),SUM(D38:G38),"-") -> 2114534.4 | I38: =IFERROR((D38/Conversions!$D$3)/Conversions!$D$6,"-") -> - | J38: =IFERROR((E38/Conversions!$D$3)/Conversions!$D$6,"-") -> - | K38: =IFERROR((F38/Conversions!$D$3)/Conversions!$D$6,"-") -> 9.411213914 | L38: =IFERROR((G38/Conversions!$D$3)/Conversions!$D$6,"-") -> 5.198714596 | M38: =IF(SUM(I38:L38),SUM(I38:L38),"-") -> 14.60992851
B39: California | C39: 72 | D39: 927641.43 | E39: 200715.066 | F39: 3724829.058 | G39: 559184.771 | H39: =IF(SUM(D39:G39),SUM(D39:G39),"-") -> 5412370.325 | I39: =IFERROR((D39/Conversions!$D$3)/Conversions!$D$6,"-") -> 6.409342395 | J39: =IFERROR((E39/Conversions!$D$3)/Conversions!$D$6,"-") -> 1.386798325 | K39: =IFERROR((F39/Conversions!$D$3)/Conversions!$D$6,"-") -> 25.7359191 | L39: =IFERROR((G39/Conversions!$D$3)/Conversions!$D$6,"-") -> 3.863568986 | M39: =IF(SUM(I39:L39),SUM(I39:L39),"-") -> 37.39562881
B40: Oregon | C40: 3 | D40: - | E40: - | F40: 1587472 | G40: 100000 | H40: =IF(SUM(D40:G40),SUM(D40:G40),"-") -> 1687472 | I40: =IFERROR((D40/Conversions!$D$3)/Conversions!$D$6,"-") -> - | J40: =IFERROR((E40/Conversions!$D$3)/Conversions!$D$6,"-") -> - | K40: =IFERROR((F40/Conversions!$D$3)/Conversions!$D$6,"-") -> 10.96830226 | L40: =IFERROR((G40/Conversions!$D$3)/Conversions!$D$6,"-") -> 0.690928864 | M40: =IF(SUM(I40:L40),SUM(I40:L40),"-") -> 11.65923112
B41: Washington | C41: 6 | D41: 4237.65 | E41: 3458831 | F41: 160000 | G41: 332304 | H41: =IF(SUM(D41:G41),SUM(D41:G41),"-") -> 3955372.65 | I41: =IFERROR((D41/Conversions!$D$3)/Conversions!$D$6,"-") -> 0.02927914701 | J41: =IFERROR((E41/Conversions!$D$3)/Conversions!$D$6,"-") -> 23.89806174 | K41: =IFERROR((F41/Conversions!$D$3)/Conversions!$D$6,"-") -> 1.105486182 | L41: =IFERROR((G41/Conversions!$D$3)/Conversions!$D$6,"-") -> 2.295984252 | M41: =IF(SUM(I41:L41),SUM(I41:L41),"-") -> 27.32881132
B42: PADD 1 | C42: =SUM(C9:C13) -> 25 | D42: =SUM(D9:D13) -> 0 | E42: 5876743.25 | F42: 668146.4888 | G42: 591300 | H42: 7136189.739 | I42: 0 | J42: 40.60411538 | K42: 4.616416945 | L42: 4.085462373 | M42: 49.3059947
B43: PADD 2 | C43: =SUM(C15:C26) -> 57 | D43: =SUM(D15:D26) -> 1955011.916 | E43: 18359479.19 | F43: 2545391.4 | G43: 317166.6993 | H43: 23177049.21 | I43: 13.50774162 | J43: 126.850941 | K43: 17.58684389 | L43: 2.191396272 | M43: 160.1369228
B44: PADD 3 | C44: =SUM(C28:C32) -> 29 | D44: =SUM(D28:D32) -> 0 | E44: 24234426.18 | F44: 496212.5 | G44: 260829 | H44: 24991467.68 | I44: 0 | J44: 167.4426455 | K44: 3.428475389 | L44: 1.802142847 | M44: 172.6732637
B45: PADD 4 | C45: =SUM(C34:C36) -> 6 | D45: =SUM(D34:D36) -> 985500 | E45: 161704.125 | F45: 812545 | G45: 0 | H45: 1959749.125 | I45: 6.809103955 | J45: 1.117260474 | K45: 5.614107938 | L45: 0 | M45: =SUM(M34:M36) -> 13.54047237
B46: PADD 5 | C46: =SUM(C38:C41) -> 85 | D46: =SUM(D38:D41) -> 931879.08 | E46: 3659546.066 | F46: 6834411.458 | G46: 1743912.771 | H46: 13169749.38 | I46: 6.438621542 | J46: 25.28486006 | K46: 47.22092145 | L46: 12.0491967 | M46: =SUM(M38:M41) -> 90.99359976
B47: US Total | C47: =SUM(C42:C46) -> 202 | D47: 3872390.996 | E47: 52291898.81 | F47: 11356706.85 | G47: 2913208.47 | H47: 70434205.12 | I47: =SUM(I42:I46) -> 26.75546712 | J47: 361.2998224 | K47: 78.46676561 | L47: 20.12819819 | M47: 486.6502533
B49: Sources and Notes:
B50: [1]: Summation by state of the facilities' capacities listed in the Energy Vision Renewable Natural Gas Project Database, https://energy-vision.org/rng-project-database/. This represents a conservative estimate, as there are facilities listed without publicly available capacities.

Sheet Propane Consumption Forecast
B2: Propane Consumption Forecast
B4: Fuel Type | C4: Unit | D4: Citation Reference | E4: 2021 | F4: 2022 | G4: 2023 | H4: 2024
B5: Propane | C5: MM Gallons | D5: [1] | E5: ='Propane EIA Data'!F$5*'Propane EIA Data'!$F$9 -> 2.013059863 | F5: ='Propane EIA Data'!G$5*'Propane EIA Data'!$F$9 -> 2.344212568 | G5: ='Propane EIA Data'!H$5*'Propane EIA Data'!$F$9 -> 2.530703828 | H5: ='Propane EIA Data'!I$5*'Propane EIA Data'!$F$9 -> 2.598677278
B7: Sources and Notes:
B8: [1]: 'Propane Consumption Forecast.' Using Washington's historical consumption BRG has allocated the projected propane consumption using the U.S. EIA AEO Pacific Consumption Forecast. Due to an identified data limitation BRG relied upon the average allocation to Washington from 2014 through 2019.

Sheet Propane Availability
B2: Propane Production Availability (2022)
B4: PADD | C4: Production Volume
C5: Natural Gas Field Plant Production | D5: Refinery Production | E5: Total
C6: Thousand barrels/year | D6: Thousand barrels/year | E6: MM gal/year
C7: [1] | D7: [2]
B8: East Coast (PADD 1)
B9: East Coast | C9: 47 | D9: 4667 | E9: =(SUM(C9:D9)*Conversions!$D$5)/1000 -> 197.988
B10: Appalachia | C10: 82504 | D10: 294 | E10: =(SUM(C10:D10)*Conversions!$D$5)/1000 -> 3477.516
B11: Midwest (PADD 2)
B12: IN, IL, and KY | C12: 24124 | D12: 17488 | E12: =(SUM(C12:D12)*Conversions!$D$5)/1000 -> 1747.704
B13: MN, WI, ND, SD | C13: 50862 | D13: 3328 | E13: =(SUM(C13:D13)*Conversions!$D$5)/1000 -> 2275.98
B14: OK, KS, MO | C14: 58178 | D14: 5429 | E14: =(SUM(C14:D14)*Conversions!$D$5)/1000 -> 2671.494
B15: Gulf Coast (PADD 3)
B16: TX Inland | C16: 277527 | D16: 3231 | E16: =(SUM(C16:D16)*Conversions!$D$5)/1000 -> 11791.836
B17: TX Gulf Coast | C17: 14152 | D17: 27825 | E17: =(SUM(C17:D17)*Conversions!$D$5)/1000 -> 1763.034
B18: LA Gulf Coast | C18: 20583 | D18: 24032 | E18: =(SUM(C18:D18)*Conversions!$D$5)/1000 -> 1873.83
B19: N. LA, AK | C19: 1708 | D19: 142 | E19: =(SUM(C19:D19)*Conversions!$D$5)/1000 -> 77.7
B20: NM | C20: 36093 | D20: 358 | E20: =(SUM(C20:D20)*Conversions!$D$5)/1000 -> 1530.942
B21: Rocky Mountains (PADD 4) | C21: 67943 | D21: 2839 | E21: =(SUM(C21:D21)*Conversions!$D$5)/1000 -> 2972.844
B22: West Coast (PADD 5) | C22: 2993 | D22: 11692 | E22: =(SUM(C22:D22)*Conversions!$D$5)/1000 -> 616.77
B23: PADD 1 | C23: =SUM(C9:C10) -> 82551 | D23: =SUM(D9:D10) -> 4961 | E23: =SUM(E9:E10) -> 3675.504
B24: PADD 2 | C24: =SUM(C12:C14) -> 133164 | D24: =SUM(D12:D14) -> 26245 | E24: =SUM(E12:E14) -> 6695.178
B25: PADD 3 | C25: =SUM(C16:C20) -> 350063 | D25: =SUM(D16:D20) -> 55588 | E25: =SUM(E16:E20) -> 17037.342
B26: PADD 4 | C26: =C21 -> 67943 | D26: =D21 -> 2839 | E26: 2972.844
B27: PADD 5 | C27: =C22 -> 2993 | D27: 11692 | E27: 616.77
B28: US | C28: =SUM(C8:C22) -> 636714 | D28: =SUM(D8:D22) -> 101325 | E28: =SUM(E8:E22) -> 30997.638
B30: Sources and Notes
B31: [1]: U.S. Energy Information Administration, Natural Gas Plant Field Production, accessed as of Sept. 2, 2022. https://www.eia.gov/dnav/pet/pet_pnp_gp_a_EPLLPA_FPF_mbbl_a.htm
B32: [2]: U.S. Energy Information Administration, Refinery Net Production, accessed as of Sept. 2, 2022. https://www.eia.gov/dnav/pet/pet_pnp_refp2_a_EPLLPA_YPY_mbbl_a.htm

Sheet Data Sources-->

Sheet Gas & Diesel Forecast Data
C2: Transportation Revenue Forecast Council Table A. 1. Washington Motor Fuel Consumption Fiscal Year Forecast June 2022
L3: Current Biennia
D4: 2014 | E4: 2015 | F4: 2016 | G4: 2017 | H4: 2018 | I4: 2019 | J4: 2020 | K4: 2021 | L4: 2022 | M4: 2023 | N4: 2024 | O4: 2025 | P4: 2026 | Q4: 2027 | R4: 2028 | S4: 2029 | T4: 2030 | U4: 2031
C5: Million Gallons
C6: Gasoline (June 2022 Forecast) | D6: 2716 | E6: 2757 | F6: 2844 | G6: 2887 | H6: 2966 | I6: 2905 | J6: 2734 | K6: 2494 | L6: 2659 | M6: 2719 | N6: 2762 | O6: 2795 | P6: 2815 | Q6: 2834 | R6: 2853 | S6: 2871 | T6: 2890 | U6: 2909
C7: Annual Percentage Change | D7: 0.015 | E7: 0.015 | F7: 0.031 | G7: 0.015 | H7: 0.028 | I7: -0.021 | J7: -0.059 | K7: -0.088 | L7: 0.066 | M7: 0.023 | N7: 0.016 | O7: 0.012 | P7: 0.007 | Q7: 0.007 | R7: 0.007 | S7: 0.006 | T7: 0.007 | U7: 0.006
C8: Gasoline (Feb. 2022 Forecast) | D8: 2716 | E8: 2757 | F8: 2844 | G8: 2887 | H8: 2966 | I8: 2905 | J8: 2734 | K8: 2494 | L8: 2659 | M8: 2719 | N8: 2762 | O8: 2795 | P8: 2815 | Q8: 2834 | R8: 2853 | S8: 2871 | T8: 2890 | U8: 2909
C9: Percentage Change, June 2022 vs Feb. 2022 | D9: 0 | E9: 0 | F9: 0 | G9: 0 | H9: 0 | I9: 0 | J9: 0 | K9: 0 | L9: 0 | M9: 0 | N9: 0 | O9: 0 | P9: 0 | Q9: 0 | R9: 0 | S9: 0 | T9: 0 | U9: 0
C10: Diesel (June 2022 Forecast) | D10: 656 | E10: 663 | F10: 676.2 | G10: 675 | H10: 678 | I10: 689 | J10: 710 | K10: 726 | L10: 777 | M10: 782 | N10: 791 | O10: 803 | P10: 816 | Q10: 829 | R10: 841 | S10: 854 | T10: 860 | U10: 866
C11: Annual Percentage Change | D11: 0.03 | E11: 0.01 | F11: 0.02 | G11: -0.002 | H11: 0.005 | I11: 0.015 | J11: 0.031 | K11: 0.022 | L11: 0.07 | M11: 0.007 | N11: 0.011 | O11: 0.016 | P11: 0.016 | Q11: 0.016 | R11: 0.015 | S11: 0.015 | T11: 0.007 | U11: 0.007
C12: Diesel (Feb. 2022 Forecast) | D12: 656 | E12: 663 | F12: 676.2 | G12: 675 | H12: 678 | I12: 689 | J12: 710 | K12: 726 | L12: 754 | M12: 772 | N12: 783 | O12: 793 | P12: 803 | Q12: 813 | R12: 823 | S12: 832 | T12: 842 | U12: 852
C13: Percentage Change, June 2022 vs Feb. 2022 | D13: 0 | E13: 0 | F13: 0 | G13: 0 | H13: 0 | I13: 0 | J13: 0 | K13: 0 | L13: 0.03 | M13: 0.014 | N13: 0.01 | O13: 0.013 | P13: 0.016 | Q13: 0.019 | R13: 0.022 | S13: 0.026 | T13: 0.021 | U13: 0.016
C14: Total Motor Fuel (June 2022 Forecast) | D14: 3373 | E14: 3420 | F14: 3520 | G14: 3562 | H14: 3645 | I14: 3593 | J14: 3444 | K14: 3220 | L14: 3435 | M14: 3501 | N14: 3552 | O14: 3599 | P14: 3631 | Q14: 3662 | R14: 3694 | S14: 3725 | T14: 3750 | U14: 3774
C15: Annual Percentage Change | D15: 0.018 | E15: 0.014 | F15: 0.029 | G15: 0.012 | H15: 0.023 | I15: -0.014 | J15: -0.042 | K15: -0.065 | L15: 0.067 | M15: 0.019 | N15: 0.015 | O15: 0.013 | P15: 0.009 | Q15: 0.009 | R15: 0.009 | S15: 0.008 | T15: 0.007 | U15: 0.006
C16: Total Motor Fuel (Feb. 2022 Forecast) | D16: 3373 | E16: 3420 | F16: 3520 | G16: 3562 | H16: 3645 | I16: 3593 | J16: 3444 | K16: 3220 | L16: 3413 | M16: 3491 | N16: 3545 | O16: 3588 | P16: 3618 | Q16: 3647 | R16: 3676 | S16: 3703 | T16: 3732 | U16: 3761
C17: Percentage Change, June 2022 vs Feb. 2022 | D17: 0 | E17: 0 | F17: 0 | G17: 0 | H17: 0 | I17: 0 | J17: 0 | K17: 0 | L17: 0.007 | M17: 0.003 | N17: 0.002 | O17: 0.003 | P17: 0.004 | Q17: 0.004 | R17: 0.005 | S17: 0.006 | T17: 0.005 | U17: 0.004
C21: Source:
C22: Washington Office of Financial Management, June 2022 Transportation Revenue Forecasts, https://ofm.wa.gov/budget/budget-related-information/transportation-revenue-information

Sheet Vehicle Stock Forecast
B2: Washington Vehicle Stock Forecast
D3: 2014 | E3: 2015 | F3: 2016 | G3: 2017 | H3: 2018 | I3: 2019 | J3: 2020 | K3: 2021 | L3: 2022 | M3: 2023 | N3: 2024 | O3: 2025 | P3: 2026 | Q3: 2027 | R3: 2028 | S3: 2029 | T3: 2030 | U3: 2031
B4: Vehicles paying Basic License Fee ($30)
C5: Passenger Car and Cabs | D5: 4529669 | E5: 4707553 | F5: 4908456 | G5: 5060804 | H5: 5187649 | I5: 5204763 | J5: 5102400 | K5: 5519519 | L5: 5400000 | M5: 5433159 | N5: 5548000 | O5: 5662873 | P5: 5777753 | Q5: 5891612 | R5: 5968428 | S5: 6044049 | T5: 6120658 | U5: 6196997
C6: Motorhomes | D6: 65975 | E6: 66913 | F6: 68720 | G6: 69000 | H6: 68917 | I6: 67618 | J6: 64100 | K6: 74078 | L6: 71000 | M6: 71160 | N6: 71320 | O6: 71486 | P6: 71651 | Q6: 71812 | R6: 71970 | S6: 72124 | T6: 72278 | U6: 72430
C7: Travel Trailers | D7: 126313 | E7: 132569 | F7: 142484 | G7: 149700 | H7: 159651 | I7: 162387 | J7: 160400 | K7: 194295 | L7: 190000 | M7: 190222 | N7: 190999 | O7: 192917 | P7: 194895 | Q7: 196852 | R7: 198869 | S7: 200866 | T7: 202923 | U7: 204960
C8: Motorcycles | D8: 229822 | E8: 236384 | F8: 236134 | G8: 231400 | H8: 235531 | I8: 232369 | J8: 221400 | K8: 245409 | L8: 225000 | M8: 226125 | N8: 227256 | O8: 228392 | P8: 229534 | Q8: 230682 | R8: 231835 | S8: 232994 | T8: 234159 | U8: 235330
C9: Other Trailers | D9: 107205 | E9: 102538 | F9: 115059 | G9: 129900 | H9: 120791 | I9: 122369 | J9: 128000 | K9: 137650 | L9: 150000 | M9: 150175 | N9: 150244 | O9: 150991 | P9: 151763 | Q9: 152518 | R9: 153297 | S9: 154059 | T9: 154846 | U9: 155617
C10: Tow Trucks | D10: 1390 | E10: 1351 | F10: 1389 | G10: 1400 | H10: 1359 | I10: 1330 | J10: 1300 | K10: 1385 | L10: 1400 | M10: 1393 | N10: 1386 | O10: 1379 | P10: 1372 | Q10: 1365 | R10: 1359 | S10: 1352 | T10: 1345 | U10: 1338
D11: 5060374 | E11: 5247308 | F11: 5472242 | G11: 5642204 | H11: 5773898 | I11: 5790836 | J11: 5677600 | K11: 6172336 | L11: 6037400 | M11: 6072234 | N11: 6189204 | O11: 6308038 | P11: 6426968 | Q11: 6544841 | R11: 6625757 | S11: 6705444 | T11: 6786210 | U11: 6866673
B12: Vehicles paying Weight-based Registration Fee (Trucks)
C13: Trucks | D13: 1459229 | E13: 1489331 | F13: 1539232 | G13: 1578707 | H13: 1599439 | I13: 1605565 | J13: 1605500 | K13: 1753701 | L13: 1733000 | M13: 1784145 | N13: 1828749 | O13: 1865324 | P13: 1893303 | Q13: 1911925 | R13: 1931657 | S13: 1948349 | T13: 1964983 | U13: 1981700
C14: For Hire, Buses, Stages | D14: 3225 | E14: 3591 | F14: 3760 | G14: 4100 | H14: 4434 | I14: 4148 | J14: 3500 | K14: 3484 | L14: 3800 | M14: 4249 | N14: 4673 | O14: 5047 | P14: 5350 | Q14: 5561 | R14: 5790 | S14: 5990 | T14: 6195 | U14: 6406
C15: Comb. Lic. Fee Trailers | D15: 67337 | E15: 70728 | F15: 76964 | G15: 84300 | H15: 94277 | I15: 97838 | J15: 95000 | K15: 106411 | L15: 110000 | M15: 114328 | N15: 118139 | O15: 121290 | P15: 123716 | Q15: 125338 | R15: 127063 | S15: 128527 | T15: 129990 | U15: 131464
C16: Prorate Motor Vehicles | D16: 27662 | E16: 28233 | F16: 29179 | G16: 28600 | H16: 30801 | I16: 25347 | J16: 25300 | K16: 25659 | L16: 29000 | M16: 29856 | N16: 30602 | O16: 31214 | P16: 31683 | Q16: 31994 | R16: 32324 | S16: 32604 | T16: 32882 | U16: 33162
D17: 1557453 | E17: 1591883 | F17: 1649135 | G17: 1695707 | H17: 1728951 | I17: 1732898 | J17: 1729300 | K17: 1889255 | L17: 1875800 | M17: 1932578 | N17: 1982164 | O17: 2022875 | P17: 2054052 | Q17: 2074818 | R17: 2096834 | S17: 2115469 | T17: 2134050 | U17: 2152732
B18: Vehicles paying varying fees
C19: Restored and Antiques | D19: 9631 | E19: 10771 | F19: 10769 | G19: 20700 | H19: 29089 | I19: 26524 | J19: 25700 | K19: 32776 | L19: 34000 | M19: 34170 | N19: 34341 | O19: 34513 | P19: 34685 | Q19: 34859 | R19: 35033 | S19: 35208 | T19: 35384 | U19: 35561
C20: Campers | D20: 24177 | E20: 23513 | F20: 23358 | G20: 22600 | H20: 22118 | I20: 20783 | J20: 19100 | K20: 21293 | L20: 19200 | M20: 18816 | N20: 18440 | O20: 18071 | P20: 17709 | Q20: 17355 | R20: 17008 | S20: 16668 | T20: 16335 | U20: 16008
C21: Mopeds | D21: 9040 | E21: 8978 | F21: 8671 | G21: 7800 | H21: 7391 | I21: 6818 | J21: 6200 | K21: 6637 | L21: 5850 | M21: 5792 | N21: 5734 | O21: 5676 | P21: 5619 | Q21: 5563 | R21: 5508 | S21: 5453 | T21: 5398 | U21: 5344
C22: Exempt | D22: 6404 | E22: 8258 | F22: 8542 | G22: 9000 | H22: 8334 | I22: 9104 | J22: 7700 | K22: 7040 | L22: 7200 | M22: 7500 | N22: 7500 | O22: 7500 | P22: 7500 | Q22: 7500 | R22: 7500 | S22: 7500 | T22: 7500 | U22: 7500
D23: 49252 | E23: 51520 | F23: 51340 | G23: 60100 | H23: 66932 | I23: 63200 | J23: 58700 | K23: 67746 | L23: 66250 | M23: 66278 | N23: 66014 | O23: 65760 | P23: 65514 | Q23: 65277 | R23: 65049 | S23: 64829 | T23: 64617 | U23: 64413
B25: Personal Trailers | D25: 440741 | E25: 454511 | F25: 449369 | G25: 439300 | H25: 458925 | I25: 449177 | J25: 432400 | K25: 490483 | L25: 432000 | M25: 435055 | N25: 438125 | O25: 442355 | P25: 453880 | Q25: 465631 | R25: 477778 | S25: 490118 | T25: 502878 | U25: 515836
B26: Intermittent-Use Trailers | D26: - | E26: - | F26: - | G26: 100 | H26: 575 | I26: 1788 | J26: 2300 | K26: 2943 | L26: 3600 | M26: 4200 | N26: 4890 | O26: 5680 | P26: 6470 | Q26: 7110 | R26: 7700 | S26: 8130 | T26: 8410 | U26: 8550
B28: Total Highway Vehicles | D28: 6667081 | E28: 6890713 | F28: 7622088 | G28: 7837500 | H28: 8029283 | I28: 8037930 | J28: 7900400 | K28: 8812236 | L28: 8415050 | M28: 8510345 | N28: 8680396 | O28: 8844707 | P28: 9006884 | Q28: 9157678 | R28: 9273118 | S28: 9383990 | T28: 9496164 | U28: 9608204
B30: Off Road Vehicles | D30: 82244 | E30: 83606 | F30: 84783 | G30: 91400 | H30: 97909 | I30: 95935 | J30: 102300 | K30: 115900 | L30: 114100 | M30: 115660 | N30: 115420 | O30: 115420 | P30: 115420 | Q30: 115420 | R30: 115420 | S30: 115420 | T30: 115420 | U30: 115420
C31: Wheeled All Tertain Vehicles | D31: 906 | E31: 3875 | F31: 21327 | G31: 37400 | H31: 51048 | I31: 49647 | J31: 55400 | K31: 66430 | L31: 68800 | M31: 70490 | N31: 70750 | O31: 70750 | P31: 70750 | Q31: 70750 | R31: 70750 | S31: 70750 | T31: 70750 | U31: 70750
B33: Snowmobiles | D33: 24688 | E33: 20201 | F33: 25148 | G33: 25200 | H33: 23268 | I33: 22753 | J33: 22500 | K33: 25100 | L33: 23190 | M33: 23420 | N33: 23420 | O33: 23490 | P33: 23490 | Q33: 23490 | R33: 23490 | S33: 23490 | T33: 23490 | U33: 23490
C34: Vintage Snowmobiles | D34: 286 | E34: 266 | F34: 373 | G34: 300 | H34: 219 | I34: 220 | J34: 200 | K34: 220 | L34: 211 | M34: 200 | N34: 210 | O34: 210 | P34: 210 | Q34: 210 | R34: 210 | S34: 210 | T34: 210 | U34: 210
C35: Regular Snowmobiles | D35: 24402 | E35: 19935 | F35: 24775 | G35: 24900 | H35: 23049 | I35: 22533 | J35: 22400 | K35: 24880 | L35: 22979 | M35: 23220 | N35: 23210 | O35: 23280 | P35: 23280 | Q35: 23280 | R35: 23280 | S35: 23280 | T35: 23280 | U35: 23280
B36: Total Registrations | D36: 6774013 | E36: 6994520 | F36: 7732019 | G36: 7954100 | H36: 8150460 | I36: 8156618 | J36: 8025300 | K36: 8953000 | L36: 8552340 | M36: 8649425 | N36: 8819236 | O36: 8983617 | P36: 9145794 | Q36: 9296588 | R36: 9412028 | S36: 9522900 | T36: 9635074 | U36: 9747114
B38: Vehicles subject to additional renewal fees
C39: BEV ( Battery Electric Vehicles) | D39: 4976 | E39: 8047 | F39: 11737 | G39: 14500 | H39: 20867 | I39: 22700 | J39: 30500 | K39: 43000 | L39: 54471 | M39: 72648 | N39: 92434 | O39: 114623 | P39: 138103 | Q39: 161456 | R39: 184549 | S39: 207273 | T39: 229872 | U39: 252866
C40: PHEV (Plug-in Hybrid Vehciles) | D40: 1055 | E40: 1647 | F40: 2130 | G40: 2300 | H40: 3051 | I40: 5000 | J40: 6500 | K40: 8000 | L40: 8924 | M40: 10363 | N40: 11755 | O40: 13063 | P40: 14341 | Q40: 15550 | R40: 16684 | S40: 17744 | T40: 18745 | U40: 19712
C41: HV (Hybrid or Alt. Fuel Vehicles) | D41: 0 | E41: 0 | F41: 0 | G41: 0 | H41: 0 | I41: 0 | J41: 85200 | K41: 141000 | L41: 158526 | M41: 161700 | N41: 164930 | O41: 168230 | P41: 171590 | Q41: 175020 | R41: 178520 | S41: 182090 | T41: 185730 | U41: 189440
C42: EM (Electric Motorcycles) | D42: - | E42: - | F42: - | G42: - | H42: - | I42: - | J42: - | K42: - | L42: - | M42: 153 | N42: 344 | O42: 516 | P42: 619 | Q42: 743 | R42: 892 | S42: 1070 | T42: 1284 | U42: 1541
B43: Private Motorized Vehicles | D43: 6335643 | E43: 6553105 | F43: 6806310 | G43: 7002600 | H43: 7164610 | I43: 7174482 | J43: 7055500 | K43: 7852000 | L43: 7503050 | M43: 7590048 | N43: 7752060 | O43: 7905903 | P43: 8050951 | Q43: 8185373 | R43: 8283903 | S43: 8378122 | T43: 8473283 | U43: 8568269
B47: Source:
B48: Washington Office of Financial Management, June 2022 Transportation Revenue Forecasts, https://ofm.wa.gov/budget/budget-related-information/transportation-revenue-information

Sheet CNG Vehicle Registrations
C2: Washington CNG Vehicle Use Analysis
C4: CNG Vehicles
D5: Weighted Average Fuel Economy (MPGe) | E5: [1] | F5: 22.86956522
D6: Average VMT per Vehicle in Washington (2019) | E6: [2] | F6: 8811.82
D7: Washington Avg. Annual CNG Consumption/Vehicle (GGE) | E7: [3] | F7: 385.3078035
D8: Total Number of CNG Vehicles | E8: [4] | F8: 276
C10: Sources:
C11: [1]: BRG Calculation
C12: [2] BRG analysis using Federal Highway Administration Data and Washington State Department of Licensing data.
C13: [3]: BRG Calculation
C14: [4] Washington Department of Licensing, Vehicle Registration Transactions Data, https://data.wa.gov/Transportation/Vehicle-Registration-Transactions-by-Department-of/brw6-jymh/data

Sheet Washington EV Data
C2: Washington Electric Vehicle Use Analysis | X2: Weighted Average Fuel Economy (Kwh/100 miles) | Y2: Average Per Capita VMT in Washington (2017) | Z2: Washington Avg. Annual Electricity Consumption/BEV (Kwh) | AB2: Weighted Average Fuel Economy (kWh/100 miles) | AC2: Weighted Average Fuel Economy (kWh/mile) | AD2: Weighted Average Electric Range (Miles) | AE2: Weighted Average Electric Range Used (Miles) | AF2: Estimated Electricity Use/Year/PHEV
C4: Battery Electric Vehicles (BEV)
D5: Weighted Average Fuel Economy (Kwh/100 miles) | E5: [1] | F5: 28.93452756
D6: Average VMT per Vehicle in Washington (2019) | E6: [2] | F6: 8811.82
D7: Washington Avg. Annual Electricity Consumption (kWh/BEV) | E7: [3] | F7: 2549.66
C10: Plug-in Hybrid Electric Vehicles (PHEV)
D11: Weighted Average Fuel Economy (kWh/100 miles) | E11: [4] | F11: 33.41911318
D12: Weighted Average Fuel Economy (kWh/mile) | E12: [5] | F12: 0.3341911318
D13: Weighted Average Electric Range (Miles) | E13: [6] | F13: 30.81504353
D14: Estimated VMT Using Electricity | E14: [7] | F14: =MIN($F$6*0.9,F13*365) -> 7930.638
D15: Estimated Electricity Use/Year/PHEV (kWh/PHEV) | E15: [8] | F15: =(F14/100)*F11 -> 2650.348889
C18: Sources and Notes:
C19: [1]: BRG analysis based on Washington Electric Vehicle Population Data, https://data.wa.gov/Transportation/Electric-Vehicle-Population-Data/f6w7-q2d2
C20: [2] BRG analysis using Federal Highway Administration Data and Washington State Department of Licensing data.
C21: [3]-[6]: BRG analysis based on Washington Electric Vehicle Population Data, https://data.wa.gov/Transportation/Electric-Vehicle-Population-Data/f6w7-q2d2
C22: [8]: BRG analysis based on Washington Electric Vehicle Population Data, https://data.wa.gov/Transportation/Electric-Vehicle-Population-Data/f6w7-q2d2

Sheet Propane EIA Data
C2: Pacific Transportation Sector Propane Consumption Forecast
C3: Fuel Type | D3: Units | E3: Source | F3: 2021 | G3: 2022 | H3: 2023 | I3: 2024
C4: Propane | D4: Quads | E4: [1] | F4: 0.001155 | G4: 0.001345 | H4: 0.001452 | I4: 0.001491
C5: Propane | D5: MM Gallons | F5: =((F4*(10^12))/'Fuel Energy Consumption'!$E$17)/1000000 -> 12.88631039 | G5: =((G4*(10^12)/'Fuel Energy Consumption'!$E$17)/1000000) -> 15.00613634 | H5: =((H4*(10^12)/'Fuel Energy Consumption'!$E$17)/1000000) -> 16.19993306 | I5: =((I4*(10^12)/'Fuel Energy Consumption'!$E$17)/1000000) -> 16.63505523
C7: Washington Allocation of Transportation Sector Propane Consumption in the Pacific Region
C8: Fuel Type | D8: Units | E8: Source | F8: 2014-2019 Consumption Average
C9: Propane | D9: % | E9: [2] | F9: 0.1562169312
C12: Source:
C13: [1]: U.S. Energy Information Administration, AEO 2022, https://www.eia.gov/outlooks/aeo/data/browser/#/?id=2-AEO2022&region=1-9&cases=ref2022&start=2020&end=2050&f=A&linechart=ref2022-d011222a.3-2-AEO2022.1-9&map=ref2022-d011222a.4-2-AEO2022.1-9&sourcekey=0https://www.eia.gov/outlooks/aeo/data/browser/#/?id=2-AEO2022&region=1-9&cases=ref2022&start=2020&end=2050&f=A&linechart=ref2022-d011222a.3-2-AEO2022.1-9&map=ref2022-d011222a.4-2-AEO2022.1-9&sourcekey=0
C14: [3]: Washington consumption as a percentage of the Pacific Region's Propane Consumption, U.S. Energy Information Administration, Table CT7, Transportation Sector Energy Consumption Estimates, 1960-2020, Washington; https://www.eia.gov/state/seds/data.php?incfile=/state/seds/sep_use/tra/use_tra_WA.html&sid=WA

Sheet Sheet1

Sheet Conversions
B2: Conversion | C2: Source
B3: Btu per 1 Scf of Natural Gas | C3: [1] | D3: 1039
B4: Scf per 1 Cubic Meter of Natural Gas | C4: [2] | D4: 35.336
B5: Gallons per Barrel | C5: [3] | D5: 42
B6: Diesel Gallons Equivalent per 1 Scf of Natural Gas | C6: [4] | D6: 139.3
B8: Sources and Notes
B9: [1]-[3]: U.S. EIA Energy Conversion Calculator, https://www.eia.gov/energyexplained/units-and-calculators/energy-conversion-calculators.php
B10: [4]: Alternative Fuels Data Center, https://afdc.energy.gov/fuels/equivalency_methodology.html
